Workbook

Sheet Cyber Risk
B1: SCHEDULE OF CYBER RISK MANAGEMENT
B2: Enter Company Name | E2: Details of individual completing form
B3: Enter Registration Number | E3: Name: | F3: Enter Name
B4: 2021-12-31 | E4: Position: | F4: Enter Position at organisation
E5: Completion date: | F5: Enter Date Completed
A7: SCOPE: WHO MUST COMPLETE THIS DOCUMENT, THE INSURER OR THEIR INSURANCE MANAGER
A8: Please select one response from the drop-down list. Where required fill in the details.
A10: 1) Please indicate the primary systems provider responsible for the (re)insurer's key information assets? (i.e., the company responsible for managing and supporting Information Technology (IT) services)
A11: 2) If the (re)insurer is primarily utilising a Bermuda Insurance Manager to manage and support their IT services, please indicate the name:
A13: If a Bermuda Insurance Manager has been selected above, then the Insurance Manager will complete the questions below on behalf of the company they manage.
A14: Where the provider has been identified as own/parent/other third party, then the questions below must be completed by the returning entity.
A16: For the questions below, please select one response from the drop-down list. Where required/applicable, attach the relevant document indicating the document name and identifying the applicable page numbers.
B18: SECTION A - BUSINESS SUMMARY QUESTIONS
B19: Geographical details | E19: Responses | G19: Complete where prompted
A20: 1 | B20: Is the company headquartered in Bermuda | D20: Is the company headquartered in Bermuda | E20: Select Yes/No
A21: 2 | B21: Number of users located in Bermuda | E21: Select Amount
A22: 3 | B22: Number of users globally | E22: Select Amount
A23: 4 | B23: Do you have a data centre in Bermuda to host your servers | E23: Select Yes/No
A24: 5 | B24: Do you utilise a cloud hosting company to host your servers | E24: Select Yes/No
A25: 6 | B25: Does the organisation have cybersecurity insurance coverage (i.e., to cover internal risk from security incidents) | E25: Select Yes/No
B26: Is the following data type stored/processed
A27: 7 | B27: Do you collect/store/process Personally Identifiable Information (PII) of your customers? examples include but are not limited to: customer name, email address, social security number | E27: Select Yes/No
A28: 8 | B28: Payment card data (i.e., credit/debit card) | E28: Select Yes/No
A29: 9 | B29: Is customer PII collected/stored/processed by this entity on behalf of other entities | E29: Select Yes/No
B30: Are the following internet-facing services in place
A31: =A29+1 -> 10 | B31: Brochureware (static content only) | D31: Brochureware (static content only) | E31: Select Yes/No
A32: =A31+1 -> 11 | B32: Web applications | D32: Web applications | E32: Select Yes/No
A33: 12 | B33: Web applications that process (e.g., query, reference, capture, store, transmit) personal data or payment card data | D33: Web applications that process (query, reference, capture, store, transmit) personal data or payment card data | E33: Select Yes/No
B34: Roles and responsibilities
A35: 13 | B35: Is there a dedicated IT risk manager. If not, which job title holds this responsibility | D35: Is there a dedicated IT Risk Manager, if not which job title holds this responsibility | E35: Select Yes/No | G35: Confirm role holder's name
A36: 14 | B36: Is there a dedicated IT security manager. If not, which job title holds this responsibility | D36: Is there a dedicated IT Security Manager, if not which job title holds this responsibility | E36: Select Yes/No | G36: Confirm role holder's name
A37: 15 | B37: Is there a dedicated IT disaster recovery manager. If not, which job title holds this responsibility | D37: Is there a dedicated IT Disaster Recovery Manager, if not which job title holds this responsibility | E37: Select Yes/No | G37: Confirm role holder's name
A38: 16 | B38: Is there a dedicated business continuity manager in place. If not, which job title holds this responsibility | D38: Is there a dedicated Business Continuity Manager (BCP) in place, if not which job title holds this responsibility | E38: Select Yes/No | G38: Confirm role holder's name
A39: 17 | B39: Does the organisation have a designated data privacy officer | D39: Does the organization have a designated Data Privacy Officer | E39: Select Yes/No | G39: Confirm role holder's name
A40: 18 | B40: Is there an annual IT audit plan in place (i.e., detailing any IT audit activity for the year) | D40: Is there an annual IT audit plan in place i.e. detailing any IT audit activity for the year | E40: Select Yes/No | G40: Date of last internal/external IT audit
B42: SECTION B - NIST (National Institute of Standards and Technology Cybersecurity Framework) CONTROL SUMMARY - Answer YES/NO
B43: Identify | E43: Responses
A44: 1 | B44: Is there a cyber risk management programme in place (i.e., assessing all IT risk to include IT security risk) | E44: Select Yes/No
A45: =A44+1 -> 2 | B45: Is the status of the cyber risk management programme communicated to the senior management team and the board of directors (board) on a regular basis | E45: Select Yes/No
A46: 3 | B46: Has a cyber risk policy (or cybersecurity policy) been approved by the board and is it updated annually | E46: Select Yes/No | G46: Specify name of relevant document
A47: 4 | B47: Are the roles and responsibilities of each of the three lines of defence clearly defined | E47: Select Yes/No
A48: 5 | B48: Has the organisation performed an assessment of compliance against data protection regulatory requirements | E48: Select Yes/No
A49: 6 | B49: Asset management - are physical devices, information systems and data within the organisation inventoried | E49: Select Yes/No
A50: 7 | B50: Has the organisation classified all data | E50: Select Yes/No
A51: 8 | B51: Has a third-party security risk assessment been completed during the past year (i.e., to assess IT risks arising from third parties) | E51: Select Yes/No
B52: Protect
A53: 9 | B53: Is data, that is classified as critical, encrypted in transit and at rest | C53: Is data that is classified as critical, encrypted in transit and at rest | D53: Is data that is classified as critical, encrypted in transit and at rest | E53: Select Yes/No
A54: =A53+1 -> 10 | B54: Is there a formal process to ensure maintenance of software and hardware (i.e., patching and managing end of life technologies) | C54: Is there a formal process to ensure maintenance of software and hardware i.e. patching & managing end of life technologies | D54: Is there a formal process to ensure maintenance of software and hardware i.e. patching & managing end of life technologies | E54: Select Yes/No
A55: 11 | B55: Is there a logical access management standard defining how systems access is verified, managed, revoked and audited | C55: Is there a Logical Access Management Standard defining how systems access is verified, managed, revoked, and audited | D55: Is there a Logical Access Management Standard defining how systems access is verified, managed, revoked, and audited | E55: Select Yes/No | G55: Specify name of relevant document
A56: 12 | B56: Do all staff complete cybersecurity training annually | C56: Do all staff complete cybersecurity training annually | D56: Do all staff complete cybersecurity training annually | E56: Select Yes/No | G56: Specify name of relevant document
A57: 13 | B57: Has a penetration test been completed in the last year | C57: Has a penetration test been completed in the last year | D57: Has a penetration test been completed in the last year | E57: Select Yes/No
A58: 14 | B58: Has the company segregated the enterprise network into multiple, separate trust zones | C58: Has the company segregated the enterprise network into multiple, separate trust zones | D58: Has the company segregated the enterprise network into multiple, separate trust zones | E58: Select Yes/No
A59: 15 | B59: Is there a process detailing IT service management controls (i.e., change, release and configuration management) | C59: Is there a process detailing IT service management controls i.e. change, release & configuration management | D59: Is there a process detailing IT service management controls i.e. change, release & configuration management | E59: Select Yes/No | G59: Specify name of relevant document
A60: 16 | B60: Does the company document and enforce security configuration standards of all network devices | C60: Does the company document and enforce security configuration standards of all network devices | D60: Does the company document and enforce security configuration standards of all network devices | E60: Select Yes/No
B61: Detect
A62: =A60+1 -> 17 | B62: Is there a process enabling the review of threat intelligence and vulnerability alerting data | D62: Is there a process enabling the review of threat intelligence & vulnerability alerting data | E62: Select Yes/No
A63: =A62+1 -> 18 | B63: Is there a process in place to monitor information systems and assets to identify cybersecurity events | D63: Is there a process in place to monitor information systems and assets to identify cybersecurity events | E63: Select Yes/No
A64: 19 | B64: Does the company centrally store and archive security event logs | D64: The company centrally stores & archives security event logs | E64: Select Yes/No
B65: Respond
A66: =A64+1 -> 20 | B66: Is there a documented security incident response plan in place, including internal and external communications and crisis management | D66: Is there a documented security incident response plan in place, including internal & external communications & crisis management | E66: Select Yes/No | G66: Specify name of relevant document
A67: =A66+1 -> 21 | B67: In the event of a major incident, is the company contracted to a "4th line" IT security expert service (e.g., a managed security services provider) | D67: In the event of a major incident, is the company contracted to a "4th line" IT security expert service (for example a Managed Security Services Provider - MSSP) | E67: Select Yes/No
B68: Recover
A69: =A67+1 -> 22 | B69: Has a test of the business continuity and IT disaster recovery plans been performed during the past 12 months | D69: Has a test of the Business Continuity and IT Disaster Recovery plans been performed during the past 12 months | E69: Select Yes/No
A70: =A69+1 -> 23 | B70: Has the organisation been subject to a significant cyber incident during the past 12 months | D70: Has the organization been subject to a significant cyber incident during the past 12 months | E70: Select Yes/No
B72: SECTION C - Technical Security Controls - Answer YES/NO
B73: Technical controls summary
A74: 1 | B74: Antivirus software is installed on all Microsoft operating system endpoints | D74: Antivirus software is installed on all Microsoft Operating System endpoints | E74: Select Yes/No
A75: =A74+1 -> 2 | B75: Is there an endpoint Advanced Persistent Threat (APT) control in place | D75: Is there an endpoint Advanced Persistent Threat (APT) control in place | E75: Select Yes/No
A76: 3 | B76: Are Data Loss Prevention (DLP) controls in place (i.e., to prevent unauthorised data leaving the enterprise) | D76: Are Data Loss Prevention (DLP) controls in place i.e.: to prevent unauthorized data leaving the enterprise | E76: Select Yes/No
A77: 4 | B77: Is INTERNAL vulnerability scanning conducted (and what is the frequency) | D77: Is INTERNAL vulnerability scanning conducted (& what is the frequency) | E77: Select Yes/No | G77: Select Frequency
A78: =A77+1 -> 5 | B78: Is EXTERNAL vulnerability scanning conducted (and what is the frequency) | D78: Is EXTERNAL vulnerability scanning conducted (& what is the frequency) | E78: Select Yes/No | G78: Select Frequency
A79: =A78+1 -> 6 | B79: Are there regular (six monthly minimum) firewall ruleset reviews | D79: Are there regular (6 monthly minimum) firewall ruleset reviews | E79: Select Yes/No
A80: 7 | B80: Is there a network perimeter Intrusion Detection System or Intrustion Prevention System (IDS/IPS) control | D80: Is there a network perimeter Intrusion Detection or Prevention (IDS/IPS) control | E80: Select Yes/No
A81: 8 | B81: Is there Distributed Denial of Service defence in place for internet gateways | D81: Is there DDOS defence in place for internet gateways | E81: Select Yes/No

Sheet SAR & Sanction Schedule
B1: SCHEDULE OF COMPLIANCE WITH SUSPICIOUS ACTIVITES REPORTING AND SANCTIONS | P1: =HYPERLINK("#'Index'!A1","Return to Index") -> Return to Index | Q1: =IF($B$3="","",TEXT(DATE(YEAR($B$3+1)-1,MONTH($B$3+1),DAY($B$3+1)),"mm/dd/yyyy")) -> 01/01/2021
B2: ='Cyber Risk'!$B$2 -> Enter Company Name | Q2: =IF($B$3="","",TEXT($B$3,"mm/dd/yyyy")) -> 12/31/2021
B3: ='Cyber Risk'!B4 -> 2021-12-31 | J3: Sanctions
B5: All insurers and reinsurers shall be required to complete the questions set out in the Suspicious Activity Reporting and Sanctions Schedule.
A7: SUSPICIOUS ACTIVITY REPORTING QUESTIONNAIRE
B8: 1 | C8: Is your company registered with GoAML at www.fia.bm | I8: Select Yes/No
C9: 1.1 If yes, under what name and when?
I10: (Select)
C12: 1.2 If you answered no to 1., do you have access to GoAML through another registration? | I12: Select Yes/No
C13: 1.3 Under what name and how are you connected?
C16: 1.4 if you answered no to 1. and 1.2, who would file a Suspicious Activity Report (SAR) on your behalf?
B19: 2 | C19: How many SARs have been filed?
G20: Internal | I20: With FIA
F21: 2021 | H21: 2021
F22: =F21-1 -> 2020 | H22: =H21-1 -> 2020
F23: =F22-1 -> 2019 | H23: 2019
F24: 2018 | H24: 2018
F25: Total | G25: =SUM(G21:G24) -> 0 | H25: Total | I25: =SUM(I21:I24) -> 0
C27: Include any additional information/comments that you think might be relevant to this exercise?
A34: SANCTIONS QUESTIONNAIRE
B35: 1 | C35: Does the company screen policyholders insurers and beneficiaries (where relevant) to determine if they are subject to measures imposed under Bermuda sanctions regime? | I35: Select Yes/No
B37: 2 | C37: Does the company screen employees to determine if they are subject to measures imposed under Bermuda sanctions regime? | I37: Select Yes/No
B39: 3 | C39: Has the company frozen any customer assets in the last 12 months under the Bermuda sanctions regime? | I39: Select Yes/No
C41: 3.1 If yes, how many asset freezes have there been?
C43: 3.2 Provide the following details for those assets freezes from the consolidated list:
E44: Group ID | F44: Name of the designated person as given on the consolidated list | I44: Name of the person/entity if owned/controlled by a designated person. | J44: Value of assets
D45: 1
D46: 2
D47: 3
D48: 4
B50: 4 | C50: How often does the licensee screen for sanctions? | I50: Select
B52: 5 | C52: Does the company have exposures to any sanctions regimes (including Bermuda and other regimes such as OFAC, UN and EU, etc.)? | I52: Select Yes/No
C53: 5.1 If the company has exposures to other sanctions regimes under question 5, please provide detail
C55: Include any additional information/comments that you think might be relevant to this exercise?
H64: 2016 | I64: Every year | J64: Yes
H65: 2015 | I65: 1 to 2 years | J65: No
H66: 2014 | I66: 2 to 5 years
H67: 2013 | I67: +5 years
H68: 2012
H69: Prior 2012

Sheet Alternative Capital
B1: Alternative Capital Schedule
B2: Name of insurer: | C2: ='Cyber Risk'!$B$2 -> Enter Company Name | D2: ='Cyber Risk'!$B$2 -> Enter Company Name
B3: Structure of the insurer:
B4: For the year ending: | C4: ='Cyber Risk'!$B$4 -> 2021-12-31
B6: Enter number of rows required
B7: (Maximum of 1,500 rows available)
B8: A) Transaction Details
B9: All monetary figures must be reported in units and in United States Dollars
B10: Name of Cedant | C10: Contract Reference (e.g., Cell Name/Account No.) | D10: Type of Coverage | E10: Statutory Line of Business Written | F10: Location of Exposure Covered | G10: Aggregate Maximum Limit as at Inception Date | H10: Net Aggregate Maximum Limit at the End of Financial Year | I10: Inception Date of Cover Period (DD/MM/YYYY) | J10: Effective Date of Contract (DD/MM/YYYY) | K10: Expiry Date of Cover Period (DD/MM/YYYY) | L10: Gross Premium Written for the Cover Period | M10: Net Premium Written for the Cover Period | N10: Attachment Point | O10: Aggregate Losses Outstanding at the Beginning of the Financial Year | P10: Aggregate Losses Incurred During the Financial Year | Q10: Aggregate Losses Outstanding at the End of the Financial Year | R10: Reserved Buffer Collateral | S10: Currency of Exposure | T10: Nature of Collateral | U10: Average Collateral Rating | V10: Amount of Collateral | W10: Additional Comments (Optional/If Necessary)
A11: 1 | D11: Select from Drop Down | E11: Select from Drop Down | F11: Select from Drop Down | S11: Select from Drop Down | T11: Select from Drop Down | U11: Select from Drop Down
A12: =A11+1 -> 2 | D12: Select from Drop Down | E12: Select from Drop Down | F12: Select from Drop Down | S12: Select from Drop Down | T12: Select from Drop Down | U12: Select from Drop Down
A13: =A12+1 -> 3 | D13: Select from Drop Down | E13: Select from Drop Down | F13: Select from Drop Down | S13: Select from Drop Down | T13: Select from Drop Down | U13: Select from Drop Down
A14: 4 | D14: Select from Drop Down | E14: Select from Drop Down | F14: Select from Drop Down | S14: Select from Drop Down | T14: Select from Drop Down | U14: Select from Drop Down
A15: 5 | D15: Select from Drop Down | E15: Select from Drop Down | F15: Select from Drop Down | S15: Select from Drop Down | T15: Select from Drop Down | U15: Select from Drop Down
A16: 6 | D16: Select from Drop Down | E16: Select from Drop Down | F16: Select from Drop Down | S16: Select from Drop Down | T16: Select from Drop Down | U16: Select from Drop Down
A17: 7 | D17: Select from Drop Down | E17: Select from Drop Down | F17: Select from Drop Down | S17: Select from Drop Down | T17: Select from Drop Down | U17: Select from Drop Down
A18: 8 | D18: Select from Drop Down | E18: Select from Drop Down | F18: Select from Drop Down | S18: Select from Drop Down | T18: Select from Drop Down | U18: Select from Drop Down
A19: 9 | D19: Select from Drop Down | E19: Select from Drop Down | F19: Select from Drop Down | S19: Select from Drop Down | T19: Select from Drop Down | U19: Select from Drop Down
A20: 10 | D20: Select from Drop Down | E20: Select from Drop Down | F20: Select from Drop Down | S20: Select from Drop Down | T20: Select from Drop Down | U20: Select from Drop Down
A21: 11 | D21: Select from Drop Down | E21: Select from Drop Down | F21: Select from Drop Down | S21: Select from Drop Down | T21: Select from Drop Down | U21: Select from Drop Down
A22: 12 | D22: Select from Drop Down | E22: Select from Drop Down | F22: Select from Drop Down | S22: Select from Drop Down | T22: Select from Drop Down | U22: Select from Drop Down
A23: 13 | D23: Select from Drop Down | E23: Select from Drop Down | F23: Select from Drop Down | S23: Select from Drop Down | T23: Select from Drop Down | U23: Select from Drop Down
A24: 14 | D24: Select from Drop Down | E24: Select from Drop Down | F24: Select from Drop Down | S24: Select from Drop Down | T24: Select from Drop Down | U24: Select from Drop Down
A25: 15 | D25: Select from Drop Down | E25: Select from Drop Down | F25: Select from Drop Down | S25: Select from Drop Down | T25: Select from Drop Down | U25: Select from Drop Down
A26: 16 | D26: Select from Drop Down | E26: Select from Drop Down | F26: Select from Drop Down | S26: Select from Drop Down | T26: Select from Drop Down | U26: Select from Drop Down
A27: 17 | D27: Select from Drop Down | E27: Select from Drop Down | F27: Select from Drop Down | S27: Select from Drop Down | T27: Select from Drop Down | U27: Select from Drop Down
A28: 18 | D28: Select from Drop Down | E28: Select from Drop Down | F28: Select from Drop Down | S28: Select from Drop Down | T28: Select from Drop Down | U28: Select from Drop Down
A29: 19 | D29: Select from Drop Down | E29: Select from Drop Down | F29: Select from Drop Down | S29: Select from Drop Down | T29: Select from Drop Down | U29: Select from Drop Down
A30: 20 | D30: Select from Drop Down | E30: Select from Drop Down | F30: Select from Drop Down | S30: Select from Drop Down | T30: Select from Drop Down | U30: Select from Drop Down
A31: 21 | D31: Select from Drop Down | E31: Select from Drop Down | F31: Select from Drop Down | S31: Select from Drop Down | T31: Select from Drop Down | U31: Select from Drop Down
A32: 22 | D32: Select from Drop Down | E32: Select from Drop Down | F32: Select from Drop Down | S32: Select from Drop Down | T32: Select from Drop Down | U32: Select from Drop Down
A33: 23 | D33: Select from Drop Down | E33: Select from Drop Down | F33: Select from Drop Down | S33: Select from Drop Down | T33: Select from Drop Down | U33: Select from Drop Down
A34: 24 | D34: Select from Drop Down | E34: Select from Drop Down | F34: Select from Drop Down | S34: Select from Drop Down | T34: Select from Drop Down | U34: Select from Drop Down
A35: 25 | D35: Select from Drop Down | E35: Select from Drop Down | F35: Select from Drop Down | S35: Select from Drop Down | T35: Select from Drop Down | U35: Select from Drop Down
A36: 26 | D36: Select from Drop Down | E36: Select from Drop Down | F36: Select from Drop Down | S36: Select from Drop Down | T36: Select from Drop Down | U36: Select from Drop Down
A37: 27 | D37: Select from Drop Down | E37: Select from Drop Down | F37: Select from Drop Down | S37: Select from Drop Down | T37: Select from Drop Down | U37: Select from Drop Down
A38: 28 | D38: Select from Drop Down | E38: Select from Drop Down | F38: Select from Drop Down | S38: Select from Drop Down | T38: Select from Drop Down | U38: Select from Drop Down
A39: 29 | D39: Select from Drop Down | E39: Select from Drop Down | F39: Select from Drop Down | S39: Select from Drop Down | T39: Select from Drop Down | U39: Select from Drop Down
A40: 30 | D40: Select from Drop Down | E40: Select from Drop Down | F40: Select from Drop Down | S40: Select from Drop Down | T40: Select from Drop Down | U40: Select from Drop Down
A41: 31 | D41: Select from Drop Down | E41: Select from Drop Down | F41: Select from Drop Down | S41: Select from Drop Down | T41: Select from Drop Down | U41: Select from Drop Down
A42: 32 | D42: Select from Drop Down | E42: Select from Drop Down | F42: Select from Drop Down | S42: Select from Drop Down | T42: Select from Drop Down | U42: Select from Drop Down
A43: 33 | D43: Select from Drop Down | E43: Select from Drop Down | F43: Select from Drop Down | S43: Select from Drop Down | T43: Select from Drop Down | U43: Select from Drop Down
A44: 34 | D44: Select from Drop Down | E44: Select from Drop Down | F44: Select from Drop Down | S44: Select from Drop Down | T44: Select from Drop Down | U44: Select from Drop Down
A45: 35 | D45: Select from Drop Down | E45: Select from Drop Down | F45: Select from Drop Down | S45: Select from Drop Down | T45: Select from Drop Down | U45: Select from Drop Down
A46: 36 | D46: Select from Drop Down | E46: Select from Drop Down | F46: Select from Drop Down | S46: Select from Drop Down | T46: Select from Drop Down | U46: Select from Drop Down
A47: 37 | D47: Select from Drop Down | E47: Select from Drop Down | F47: Select from Drop Down | S47: Select from Drop Down | T47: Select from Drop Down | U47: Select from Drop Down
A48: 38 | D48: Select from Drop Down | E48: Select from Drop Down | F48: Select from Drop Down | S48: Select from Drop Down | T48: Select from Drop Down | U48: Select from Drop Down
A49: 39 | D49: Select from Drop Down | E49: Select from Drop Down | F49: Select from Drop Down | S49: Select from Drop Down | T49: Select from Drop Down | U49: Select from Drop Down
A50: 40 | D50: Select from Drop Down | E50: Select from Drop Down | F50: Select from Drop Down | S50: Select from Drop Down | T50: Select from Drop Down | U50: Select from Drop Down
A51: 41 | D51: Select from Drop Down | E51: Select from Drop Down | F51: Select from Drop Down | S51: Select from Drop Down | T51: Select from Drop Down | U51: Select from Drop Down
A52: 42 | D52: Select from Drop Down | E52: Select from Drop Down | F52: Select from Drop Down | S52: Select from Drop Down | T52: Select from Drop Down | U52: Select from Drop Down
A53: 43 | D53: Select from Drop Down | E53: Select from Drop Down | F53: Select from Drop Down | S53: Select from Drop Down | T53: Select from Drop Down | U53: Select from Drop Down
A54: 44 | D54: Select from Drop Down | E54: Select from Drop Down | F54: Select from Drop Down | S54: Select from Drop Down | T54: Select from Drop Down | U54: Select from Drop Down
A55: 45 | D55: Select from Drop Down | E55: Select from Drop Down | F55: Select from Drop Down | S55: Select from Drop Down | T55: Select from Drop Down | U55: Select from Drop Down
A56: 46 | D56: Select from Drop Down | E56: Select from Drop Down | F56: Select from Drop Down | S56: Select from Drop Down | T56: Select from Drop Down | U56: Select from Drop Down
A57: 47 | D57: Select from Drop Down | E57: Select from Drop Down | F57: Select from Drop Down | S57: Select from Drop Down | T57: Select from Drop Down | U57: Select from Drop Down
A58: 48 | D58: Select from Drop Down | E58: Select from Drop Down | F58: Select from Drop Down | S58: Select from Drop Down | T58: Select from Drop Down | U58: Select from Drop Down
A59: 49 | D59: Select from Drop Down | E59: Select from Drop Down | F59: Select from Drop Down | S59: Select from Drop Down | T59: Select from Drop Down | U59: Select from Drop Down
A60: 50 | D60: Select from Drop Down | E60: Select from Drop Down | F60: Select from Drop Down | S60: Select from Drop Down | T60: Select from Drop Down | U60: Select from Drop Down
A61: 51 | D61: Select from Drop Down | E61: Select from Drop Down | F61: Select from Drop Down | S61: Select from Drop Down | T61: Select from Drop Down | U61: Select from Drop Down
A62: 52 | D62: Select from Drop Down | E62: Select from Drop Down | F62: Select from Drop Down | S62: Select from Drop Down | T62: Select from Drop Down | U62: Select from Drop Down
A63: 53 | D63: Select from Drop Down | E63: Select from Drop Down | F63: Select from Drop Down | S63: Select from Drop Down | T63: Select from Drop Down | U63: Select from Drop Down
A64: 54 | D64: Select from Drop Down | E64: Select from Drop Down | F64: Select from Drop Down | S64: Select from Drop Down | T64: Select from Drop Down | U64: Select from Drop Down
A65: 55 | D65: Select from Drop Down | E65: Select from Drop Down | F65: Select from Drop Down | S65: Select from Drop Down | T65: Select from Drop Down | U65: Select from Drop Down
A66: 56 | D66: Select from Drop Down | E66: Select from Drop Down | F66: Select from Drop Down | S66: Select from Drop Down | T66: Select from Drop Down | U66: Select from Drop Down
A67: 57 | D67: Select from Drop Down | E67: Select from Drop Down | F67: Select from Drop Down | S67: Select from Drop Down | T67: Select from Drop Down | U67: Select from Drop Down
A68: 58 | D68: Select from Drop Down | E68: Select from Drop Down | F68: Select from Drop Down | S68: Select from Drop Down | T68: Select from Drop Down | U68: Select from Drop Down
A69: 59 | D69: Select from Drop Down | E69: Select from Drop Down | F69: Select from Drop Down | S69: Select from Drop Down | T69: Select from Drop Down | U69: Select from Drop Down
A70: 60 | D70: Select from Drop Down | E70: Select from Drop Down | F70: Select from Drop Down | S70: Select from Drop Down | T70: Select from Drop Down | U70: Select from Drop Down
A71: 61 | D71: Select from Drop Down | E71: Select from Drop Down | F71: Select from Drop Down | S71: Select from Drop Down | T71: Select from Drop Down | U71: Select from Drop Down
A72: 62 | D72: Select from Drop Down | E72: Select from Drop Down | F72: Select from Drop Down | S72: Select from Drop Down | T72: Select from Drop Down | U72: Select from Drop Down
A73: 63 | D73: Select from Drop Down | E73: Select from Drop Down | F73: Select from Drop Down | S73: Select from Drop Down | T73: Select from Drop Down | U73: Select from Drop Down
A74: 64 | D74: Select from Drop Down | E74: Select from Drop Down | F74: Select from Drop Down | S74: Select from Drop Down | T74: Select from Drop Down | U74: Select from Drop Down
A75: 65 | D75: Select from Drop Down | E75: Select from Drop Down | F75: Select from Drop Down | S75: Select from Drop Down | T75: Select from Drop Down | U75: Select from Drop Down
A76: 66 | D76: Select from Drop Down | E76: Select from Drop Down | F76: Select from Drop Down | S76: Select from Drop Down | T76: Select from Drop Down | U76: Select from Drop Down
A77: =A76+1 -> 67 | D77: Select from Drop Down | E77: Select from Drop Down | F77: Select from Drop Down | S77: Select from Drop Down | T77: Select from Drop Down | U77: Select from Drop Down
A78: 68 | D78: Select from Drop Down | E78: Select from Drop Down | F78: Select from Drop Down | S78: Select from Drop Down | T78: Select from Drop Down | U78: Select from Drop Down
A79: 69 | D79: Select from Drop Down | E79: Select from Drop Down | F79: Select from Drop Down | S79: Select from Drop Down | T79: Select from Drop Down | U79: Select from Drop Down
A80: 70 | D80: Select from Drop Down | E80: Select from Drop Down | F80: Select from Drop Down | S80: Select from Drop Down | T80: Select from Drop Down | U80: Select from Drop Down
A81: 71 | D81: Select from Drop Down | E81: Select from Drop Down | F81: Select from Drop Down | S81: Select from Drop Down | T81: Select from Drop Down | U81: Select from Drop Down
A82: 72 | D82: Select from Drop Down | E82: Select from Drop Down | F82: Select from Drop Down | S82: Select from Drop Down | T82: Select from Drop Down | U82: Select from Drop Down
A83: 73 | D83: Select from Drop Down | E83: Select from Drop Down | F83: Select from Drop Down | S83: Select from Drop Down | T83: Select from Drop Down | U83: Select from Drop Down
A84: 74 | D84: Select from Drop Down | E84: Select from Drop Down | F84: Select from Drop Down | S84: Select from Drop Down | T84: Select from Drop Down | U84: Select from Drop Down
A85: 75 | D85: Select from Drop Down | E85: Select from Drop Down | F85: Select from Drop Down | S85: Select from Drop Down | T85: Select from Drop Down | U85: Select from Drop Down
A86: 76 | D86: Select from Drop Down | E86: Select from Drop Down | F86: Select from Drop Down | S86: Select from Drop Down | T86: Select from Drop Down | U86: Select from Drop Down
A87: 77 | D87: Select from Drop Down | E87: Select from Drop Down | F87: Select from Drop Down | S87: Select from Drop Down | T87: Select from Drop Down | U87: Select from Drop Down
A88: 78 | D88: Select from Drop Down | E88: Select from Drop Down | F88: Select from Drop Down | S88: Select from Drop Down | T88: Select from Drop Down | U88: Select from Drop Down
A89: 79 | D89: Select from Drop Down | E89: Select from Drop Down | F89: Select from Drop Down | S89: Select from Drop Down | T89: Select from Drop Down | U89: Select from Drop Down
A90: 80 | D90: Select from Drop Down | E90: Select from Drop Down | F90: Select from Drop Down | S90: Select from Drop Down | T90: Select from Drop Down | U90: Select from Drop Down
A91: 81 | D91: Select from Drop Down | E91: Select from Drop Down | F91: Select from Drop Down | S91: Select from Drop Down | T91: Select from Drop Down | U91: Select from Drop Down
A92: 82 | D92: Select from Drop Down | E92: Select from Drop Down | F92: Select from Drop Down | S92: Select from Drop Down | T92: Select from Drop Down | U92: Select from Drop Down
A93: 83 | D93: Select from Drop Down | E93: Select from Drop Down | F93: Select from Drop Down | S93: Select from Drop Down | T93: Select from Drop Down | U93: Select from Drop Down
A94: 84 | D94: Select from Drop Down | E94: Select from Drop Down | F94: Select from Drop Down | S94: Select from Drop Down | T94: Select from Drop Down | U94: Select from Drop Down
A95: 85 | D95: Select from Drop Down | E95: Select from Drop Down | F95: Select from Drop Down | S95: Select from Drop Down | T95: Select from Drop Down | U95: Select from Drop Down
A96: 86 | D96: Select from Drop Down | E96: Select from Drop Down | F96: Select from Drop Down | S96: Select from Drop Down | T96: Select from Drop Down | U96: Select from Drop Down
A97: 87 | D97: Select from Drop Down | E97: Select from Drop Down | F97: Select from Drop Down | S97: Select from Drop Down | T97: Select from Drop Down | U97: Select from Drop Down
A98: 88 | D98: Select from Drop Down | E98: Select from Drop Down | F98: Select from Drop Down | S98: Select from Drop Down | T98: Select from Drop Down | U98: Select from Drop Down
A99: 89 | D99: Select from Drop Down | E99: Select from Drop Down | F99: Select from Drop Down | S99: Select from Drop Down | T99: Select from Drop Down | U99: Select from Drop Down
A100: 90 | D100: Select from Drop Down | E100: Select from Drop Down | F100: Select from Drop Down | S100: Select from Drop Down | T100: Select from Drop Down | U100: Select from Drop Down
A101: 91 | D101: Select from Drop Down | E101: Select from Drop Down | F101: Select from Drop Down | S101: Select from Drop Down | T101: Select from Drop Down | U101: Select from Drop Down
A102: 92 | D102: Select from Drop Down | E102: Select from Drop Down | F102: Select from Drop Down | S102: Select from Drop Down | T102: Select from Drop Down | U102: Select from Drop Down
A103: 93 | D103: Select from Drop Down | E103: Select from Drop Down | F103: Select from Drop Down | S103: Select from Drop Down | T103: Select from Drop Down | U103: Select from Drop Down
A104: 94 | D104: Select from Drop Down | E104: Select from Drop Down | F104: Select from Drop Down | S104: Select from Drop Down | T104: Select from Drop Down | U104: Select from Drop Down
A105: 95 | D105: Select from Drop Down | E105: Select from Drop Down | F105: Select from Drop Down | S105: Select from Drop Down | T105: Select from Drop Down | U105: Select from Drop Down
A106: 96 | D106: Select from Drop Down | E106: Select from Drop Down | F106: Select from Drop Down | S106: Select from Drop Down | T106: Select from Drop Down | U106: Select from Drop Down
A107: 97 | D107: Select from Drop Down | E107: Select from Drop Down | F107: Select from Drop Down | S107: Select from Drop Down | T107: Select from Drop Down | U107: Select from Drop Down
A108: 98 | D108: Select from Drop Down | E108: Select from Drop Down | F108: Select from Drop Down | S108: Select from Drop Down | T108: Select from Drop Down | U108: Select from Drop Down
A109: 99 | D109: Select from Drop Down | E109: Select from Drop Down | F109: Select from Drop Down | S109: Select from Drop Down | T109: Select from Drop Down | U109: Select from Drop Down
A110: 100 | D110: Select from Drop Down | E110: Select from Drop Down | F110: Select from Drop Down | S110: Select from Drop Down | T110: Select from Drop Down | U110: Select from Drop Down
A111: 101 | D111: Select from Drop Down | E111: Select from Drop Down | F111: Select from Drop Down | S111: Select from Drop Down | T111: Select from Drop Down | U111: Select from Drop Down
A112: 102 | D112: Select from Drop Down | E112: Select from Drop Down | F112: Select from Drop Down | S112: Select from Drop Down | T112: Select from Drop Down | U112: Select from Drop Down
A113: 103 | D113: Select from Drop Down | E113: Select from Drop Down | F113: Select from Drop Down | S113: Select from Drop Down | T113: Select from Drop Down | U113: Select from Drop Down
A114: 104 | D114: Select from Drop Down | E114: Select from Drop Down | F114: Select from Drop Down | S114: Select from Drop Down | T114: Select from Drop Down | U114: Select from Drop Down
A115: 105 | D115: Select from Drop Down | E115: Select from Drop Down | F115: Select from Drop Down | S115: Select from Drop Down | T115: Select from Drop Down | U115: Select from Drop Down
A116: 106 | D116: Select from Drop Down | E116: Select from Drop Down | F116: Select from Drop Down | S116: Select from Drop Down | T116: Select from Drop Down | U116: Select from Drop Down
A117: 107 | D117: Select from Drop Down | E117: Select from Drop Down | F117: Select from Drop Down | S117: Select from Drop Down | T117: Select from Drop Down | U117: Select from Drop Down
A118: 108 | D118: Select from Drop Down | E118: Select from Drop Down | F118: Select from Drop Down | S118: Select from Drop Down | T118: Select from Drop Down | U118: Select from Drop Down
A119: 109 | D119: Select from Drop Down | E119: Select from Drop Down | F119: Select from Drop Down | S119: Select from Drop Down | T119: Select from Drop Down | U119: Select from Drop Down
A120: 110 | D120: Select from Drop Down | E120: Select from Drop Down | F120: Select from Drop Down | S120: Select from Drop Down | T120: Select from Drop Down | U120: Select from Drop Down
A121: 111 | D121: Select from Drop Down | E121: Select from Drop Down | F121: Select from Drop Down | S121: Select from Drop Down | T121: Select from Drop Down | U121: Select from Drop Down
A122: 112 | D122: Select from Drop Down | E122: Select from Drop Down | F122: Select from Drop Down | S122: Select from Drop Down | T122: Select from Drop Down | U122: Select from Drop Down
A123: 113 | D123: Select from Drop Down | E123: Select from Drop Down | F123: Select from Drop Down | S123: Select from Drop Down | T123: Select from Drop Down | U123: Select from Drop Down
A124: 114 | D124: Select from Drop Down | E124: Select from Drop Down | F124: Select from Drop Down | S124: Select from Drop Down | T124: Select from Drop Down | U124: Select from Drop Down
A125: 115 | D125: Select from Drop Down | E125: Select from Drop Down | F125: Select from Drop Down | S125: Select from Drop Down | T125: Select from Drop Down | U125: Select from Drop Down
A126: 116 | D126: Select from Drop Down | E126: Select from Drop Down | F126: Select from Drop Down | S126: Select from Drop Down | T126: Select from Drop Down | U126: Select from Drop Down
A127: 117 | D127: Select from Drop Down | E127: Select from Drop Down | F127: Select from Drop Down | S127: Select from Drop Down | T127: Select from Drop Down | U127: Select from Drop Down
A128: 118 | D128: Select from Drop Down | E128: Select from Drop Down | F128: Select from Drop Down | S128: Select from Drop Down | T128: Select from Drop Down | U128: Select from Drop Down
A129: 119 | D129: Select from Drop Down | E129: Select from Drop Down | F129: Select from Drop Down | S129: Select from Drop Down | T129: Select from Drop Down | U129: Select from Drop Down
A130: 120 | D130: Select from Drop Down | E130: Select from Drop Down | F130: Select from Drop Down | S130: Select from Drop Down | T130: Select from Drop Down | U130: Select from Drop Down
A131: 121 | D131: Select from Drop Down | E131: Select from Drop Down | F131: Select from Drop Down | S131: Select from Drop Down | T131: Select from Drop Down | U131: Select from Drop Down
A132: 122 | D132: Select from Drop Down | E132: Select from Drop Down | F132: Select from Drop Down | S132: Select from Drop Down | T132: Select from Drop Down | U132: Select from Drop Down
A133: 123 | D133: Select from Drop Down | E133: Select from Drop Down | F133: Select from Drop Down | S133: Select from Drop Down | T133: Select from Drop Down | U133: Select from Drop Down
A134: 124 | D134: Select from Drop Down | E134: Select from Drop Down | F134: Select from Drop Down | S134: Select from Drop Down | T134: Select from Drop Down | U134: Select from Drop Down
A135: 125 | D135: Select from Drop Down | E135: Select from Drop Down | F135: Select from Drop Down | S135: Select from Drop Down | T135: Select from Drop Down | U135: Select from Drop Down
A136: 126 | D136: Select from Drop Down | E136: Select from Drop Down | F136: Select from Drop Down | S136: Select from Drop Down | T136: Select from Drop Down | U136: Select from Drop Down
A137: 127 | D137: Select from Drop Down | E137: Select from Drop Down | F137: Select from Drop Down | S137: Select from Drop Down | T137: Select from Drop Down | U137: Select from Drop Down
A138: 128 | D138: Select from Drop Down | E138: Select from Drop Down | F138: Select from Drop Down | S138: Select from Drop Down | T138: Select from Drop Down | U138: Select from Drop Down
A139: 129 | D139: Select from Drop Down | E139: Select from Drop Down | F139: Select from Drop Down | S139: Select from Drop Down | T139: Select from Drop Down | U139: Select from Drop Down
A140: 130 | D140: Select from Drop Down | E140: Select from Drop Down | F140: Select from Drop Down | S140: Select from Drop Down | T140: Select from Drop Down | U140: Select from Drop Down
A141: =A140+1 -> 131 | D141: Select from Drop Down | E141: Select from Drop Down | F141: Select from Drop Down | S141: Select from Drop Down | T141: Select from Drop Down | U141: Select from Drop Down
A142: 132 | D142: Select from Drop Down | E142: Select from Drop Down | F142: Select from Drop Down | S142: Select from Drop Down | T142: Select from Drop Down | U142: Select from Drop Down
A143: 133 | D143: Select from Drop Down | E143: Select from Drop Down | F143: Select from Drop Down | S143: Select from Drop Down | T143: Select from Drop Down | U143: Select from Drop Down
A144: 134 | D144: Select from Drop Down | E144: Select from Drop Down | F144: Select from Drop Down | S144: Select from Drop Down | T144: Select from Drop Down | U144: Select from Drop Down
A145: 135 | D145: Select from Drop Down | E145: Select from Drop Down | F145: Select from Drop Down | S145: Select from Drop Down | T145: Select from Drop Down | U145: Select from Drop Down
A146: 136 | D146: Select from Drop Down | E146: Select from Drop Down | F146: Select from Drop Down | S146: Select from Drop Down | T146: Select from Drop Down | U146: Select from Drop Down
A147: 137 | D147: Select from Drop Down | E147: Select from Drop Down | F147: Select from Drop Down | S147: Select from Drop Down | T147: Select from Drop Down | U147: Select from Drop Down
A148: 138 | D148: Select from Drop Down | E148: Select from Drop Down | F148: Select from Drop Down | S148: Select from Drop Down | T148: Select from Drop Down | U148: Select from Drop Down
A149: 139 | D149: Select from Drop Down | E149: Select from Drop Down | F149: Select from Drop Down | S149: Select from Drop Down | T149: Select from Drop Down | U149: Select from Drop Down
A150: 140 | D150: Select from Drop Down | E150: Select from Drop Down | F150: Select from Drop Down | S150: Select from Drop Down | T150: Select from Drop Down | U150: Select from Drop Down
A151: 141 | D151: Select from Drop Down | E151: Select from Drop Down | F151: Select from Drop Down | S151: Select from Drop Down | T151: Select from Drop Down | U151: Select from Drop Down
A152: 142 | D152: Select from Drop Down | E152: Select from Drop Down | F152: Select from Drop Down | S152: Select from Drop Down | T152: Select from Drop Down | U152: Select from Drop Down
A153: 143 | D153: Select from Drop Down | E153: Select from Drop Down | F153: Select from Drop Down | S153: Select from Drop Down | T153: Select from Drop Down | U153: Select from Drop Down
A154: 144 | D154: Select from Drop Down | E154: Select from Drop Down | F154: Select from Drop Down | S154: Select from Drop Down | T154: Select from Drop Down | U154: Select from Drop Down
A155: 145 | D155: Select from Drop Down | E155: Select from Drop Down | F155: Select from Drop Down | S155: Select from Drop Down | T155: Select from Drop Down | U155: Select from Drop Down
A156: 146 | D156: Select from Drop Down | E156: Select from Drop Down | F156: Select from Drop Down | S156: Select from Drop Down | T156: Select from Drop Down | U156: Select from Drop Down
A157: 147 | D157: Select from Drop Down | E157: Select from Drop Down | F157: Select from Drop Down | S157: Select from Drop Down | T157: Select from Drop Down | U157: Select from Drop Down
A158: 148 | D158: Select from Drop Down | E158: Select from Drop Down | F158: Select from Drop Down | S158: Select from Drop Down | T158: Select from Drop Down | U158: Select from Drop Down
A159: 149 | D159: Select from Drop Down | E159: Select from Drop Down | F159: Select from Drop Down | S159: Select from Drop Down | T159: Select from Drop Down | U159: Select from Drop Down
A160: 150 | D160: Select from Drop Down | E160: Select from Drop Down | F160: Select from Drop Down | S160: Select from Drop Down | T160: Select from Drop Down | U160: Select from Drop Down
A161: 151 | D161: Select from Drop Down | E161: Select from Drop Down | F161: Select from Drop Down | S161: Select from Drop Down | T161: Select from Drop Down | U161: Select from Drop Down
A162: 152 | D162: Select from Drop Down | E162: Select from Drop Down | F162: Select from Drop Down | S162: Select from Drop Down | T162: Select from Drop Down | U162: Select from Drop Down
A163: 153 | D163: Select from Drop Down | E163: Select from Drop Down | F163: Select from Drop Down | S163: Select from Drop Down | T163: Select from Drop Down | U163: Select from Drop Down
A164: 154 | D164: Select from Drop Down | E164: Select from Drop Down | F164: Select from Drop Down | S164: Select from Drop Down | T164: Select from Drop Down | U164: Select from Drop Down
A165: 155 | D165: Select from Drop Down | E165: Select from Drop Down | F165: Select from Drop Down | S165: Select from Drop Down | T165: Select from Drop Down | U165: Select from Drop Down
A166: 156 | D166: Select from Drop Down | E166: Select from Drop Down | F166: Select from Drop Down | S166: Select from Drop Down | T166: Select from Drop Down | U166: Select from Drop Down
A167: 157 | D167: Select from Drop Down | E167: Select from Drop Down | F167: Select from Drop Down | S167: Select from Drop Down | T167: Select from Drop Down | U167: Select from Drop Down
A168: 158 | D168: Select from Drop Down | E168: Select from Drop Down | F168: Select from Drop Down | S168: Select from Drop Down | T168: Select from Drop Down | U168: Select from Drop Down
A169: 159 | D169: Select from Drop Down | E169: Select from Drop Down | F169: Select from Drop Down | S169: Select from Drop Down | T169: Select from Drop Down | U169: Select from Drop Down
A170: 160 | D170: Select from Drop Down | E170: Select from Drop Down | F170: Select from Drop Down | S170: Select from Drop Down | T170: Select from Drop Down | U170: Select from Drop Down
A171: 161 | D171: Select from Drop Down | E171: Select from Drop Down | F171: Select from Drop Down | S171: Select from Drop Down | T171: Select from Drop Down | U171: Select from Drop Down
A172: 162 | D172: Select from Drop Down | E172: Select from Drop Down | F172: Select from Drop Down | S172: Select from Drop Down | T172: Select from Drop Down | U172: Select from Drop Down
A173: 163 | D173: Select from Drop Down | E173: Select from Drop Down | F173: Select from Drop Down | S173: Select from Drop Down | T173: Select from Drop Down | U173: Select from Drop Down
A174: 164 | D174: Select from Drop Down | E174: Select from Drop Down | F174: Select from Drop Down | S174: Select from Drop Down | T174: Select from Drop Down | U174: Select from Drop Down
A175: 165 | D175: Select from Drop Down | E175: Select from Drop Down | F175: Select from Drop Down | S175: Select from Drop Down | T175: Select from Drop Down | U175: Select from Drop Down
A176: 166 | D176: Select from Drop Down | E176: Select from Drop Down | F176: Select from Drop Down | S176: Select from Drop Down | T176: Select from Drop Down | U176: Select from Drop Down
A177: 167 | D177: Select from Drop Down | E177: Select from Drop Down | F177: Select from Drop Down | S177: Select from Drop Down | T177: Select from Drop Down | U177: Select from Drop Down
A178: 168 | D178: Select from Drop Down | E178: Select from Drop Down | F178: Select from Drop Down | S178: Select from Drop Down | T178: Select from Drop Down | U178: Select from Drop Down
A179: 169 | D179: Select from Drop Down | E179: Select from Drop Down | F179: Select from Drop Down | S179: Select from Drop Down | T179: Select from Drop Down | U179: Select from Drop Down
A180: 170 | D180: Select from Drop Down | E180: Select from Drop Down | F180: Select from Drop Down | S180: Select from Drop Down | T180: Select from Drop Down | U180: Select from Drop Down
A181: 171 | D181: Select from Drop Down | E181: Select from Drop Down | F181: Select from Drop Down | S181: Select from Drop Down | T181: Select from Drop Down | U181: Select from Drop Down
A182: 172 | D182: Select from Drop Down | E182: Select from Drop Down | F182: Select from Drop Down | S182: Select from Drop Down | T182: Select from Drop Down | U182: Select from Drop Down
A183: 173 | D183: Select from Drop Down | E183: Select from Drop Down | F183: Select from Drop Down | S183: Select from Drop Down | T183: Select from Drop Down | U183: Select from Drop Down
A184: 174 | D184: Select from Drop Down | E184: Select from Drop Down | F184: Select from Drop Down | S184: Select from Drop Down | T184: Select from Drop Down | U184: Select from Drop Down
A185: 175 | D185: Select from Drop Down | E185: Select from Drop Down | F185: Select from Drop Down | S185: Select from Drop Down | T185: Select from Drop Down | U185: Select from Drop Down
A186: 176 | D186: Select from Drop Down | E186: Select from Drop Down | F186: Select from Drop Down | S186: Select from Drop Down | T186: Select from Drop Down | U186: Select from Drop Down
A187: 177 | D187: Select from Drop Down | E187: Select from Drop Down | F187: Select from Drop Down | S187: Select from Drop Down | T187: Select from Drop Down | U187: Select from Drop Down
A188: 178 | D188: Select from Drop Down | E188: Select from Drop Down | F188: Select from Drop Down | S188: Select from Drop Down | T188: Select from Drop Down | U188: Select from Drop Down
A189: 179 | D189: Select from Drop Down | E189: Select from Drop Down | F189: Select from Drop Down | S189: Select from Drop Down | T189: Select from Drop Down | U189: Select from Drop Down
A190: 180 | D190: Select from Drop Down | E190: Select from Drop Down | F190: Select from Drop Down | S190: Select from Drop Down | T190: Select from Drop Down | U190: Select from Drop Down
A191: 181 | D191: Select from Drop Down | E191: Select from Drop Down | F191: Select from Drop Down | S191: Select from Drop Down | T191: Select from Drop Down | U191: Select from Drop Down
A192: 182 | D192: Select from Drop Down | E192: Select from Drop Down | F192: Select from Drop Down | S192: Select from Drop Down | T192: Select from Drop Down | U192: Select from Drop Down
A193: 183 | D193: Select from Drop Down | E193: Select from Drop Down | F193: Select from Drop Down | S193: Select from Drop Down | T193: Select from Drop Down | U193: Select from Drop Down
A194: 184 | D194: Select from Drop Down | E194: Select from Drop Down | F194: Select from Drop Down | S194: Select from Drop Down | T194: Select from Drop Down | U194: Select from Drop Down
A195: 185 | D195: Select from Drop Down | E195: Select from Drop Down | F195: Select from Drop Down | S195: Select from Drop Down | T195: Select from Drop Down | U195: Select from Drop Down
A196: 186 | D196: Select from Drop Down | E196: Select from Drop Down | F196: Select from Drop Down | S196: Select from Drop Down | T196: Select from Drop Down | U196: Select from Drop Down
A197: 187 | D197: Select from Drop Down | E197: Select from Drop Down | F197: Select from Drop Down | S197: Select from Drop Down | T197: Select from Drop Down | U197: Select from Drop Down
A198: 188 | D198: Select from Drop Down | E198: Select from Drop Down | F198: Select from Drop Down | S198: Select from Drop Down | T198: Select from Drop Down | U198: Select from Drop Down
A199: 189 | D199: Select from Drop Down | E199: Select from Drop Down | F199: Select from Drop Down | S199: Select from Drop Down | T199: Select from Drop Down | U199: Select from Drop Down
A200: 190 | D200: Select from Drop Down | E200: Select from Drop Down | F200: Select from Drop Down | S200: Select from Drop Down | T200: Select from Drop Down | U200: Select from Drop Down
A201: 191 | D201: Select from Drop Down | E201: Select from Drop Down | F201: Select from Drop Down | S201: Select from Drop Down | T201: Select from Drop Down | U201: Select from Drop Down
... 1351 more rows

Sheet SAC Template
C1: SCHEDULE OF SEGREGATED ACCOUNTS
C2: ='Cyber Risk'!$B$2 -> Enter Company Name | D2: Ensure that all figures are included on a statutory basis. Items that require a balance sheet check should be consistent with the respective line on Form 1A. Input the value from the financial statements and where a discrepancy is noted, include a comment explaining the difference. | BM2: Schedule II
C3: ='Cyber Risk'!B4 -> 2021-12-31 | G3: Enter number of columns required (note only a maximum of 50 cells) | BG3: Grand Total General Account and Total Cells
C4: Expressed in ['000s] | BE4: General | BI4: Balance Sheet
D5: Cell 1 | E5: Cell 2 | F5: Cell 3 | G5: Cell 4 | H5: Cell 5 | I5: Cell 6 | J5: Cell 7 | K5: Cell 8 | L5: Cell 9 | M5: Cell 10 | N5: Cell 11 | O5: Cell 12 | P5: Cell 13 | Q5: Cell 14 | R5: Cell 15 | S5: Cell 16 | T5: Cell 17 | U5: Cell 18 | V5: Cell 19 | W5: Cell 20 | X5: Cell 21 | Y5: Cell 22 | Z5: Cell 23 | AA5: Cell 24 | AB5: Cell 25 | AC5: Cell 26 | AD5: Cell 27 | AE5: Cell 28 | AF5: Cell 29 | AG5: Cell 30 | AH5: Cell 31 | AI5: Cell 32 | AJ5: Cell 33 | AK5: Cell 34 | AL5: Cell 35 | AM5: Cell 36 | AN5: Cell 37 | AO5: Cell 38 | AP5: Cell 39 | AQ5: Cell 40 | AR5: Cell 41 | AS5: Cell 42 | AT5: Cell 43 | AU5: Cell 44 | AV5: Cell 45 | AW5: Cell 46 | AX5: Cell 47 | AY5: Cell 48 | AZ5: Cell 49 | BA5: Cell 50 | BC5: Total of Cells | BE5: Account | BI5: Check | BK5: Difference | BM5: Comment for Discrepancies Noted
B6: (A) | C6: Cell reference number
B7: (B) | C7: Cell name
B8: (C) | C8: Direct insurer, reinsurer or both | D8: Select Premiums Written | E8: Select Premiums Written | F8: Select Premiums Written | G8: Select Premiums Written | H8: Select Premiums Written | I8: Select Premiums Written | J8: Select Premiums Written | K8: Select Premiums Written | L8: Select Premiums Written | M8: Select Premiums Written | N8: Select Premiums Written | O8: Select Premiums Written | P8: Select Premiums Written | Q8: Select Premiums Written | R8: Select Premiums Written | S8: Select Premiums Written | T8: Select Premiums Written | U8: Select Premiums Written | V8: Select Premiums Written | W8: Select Premiums Written | X8: Select Premiums Written | Y8: Select Premiums Written | Z8: Select Premiums Written | AA8: Select Premiums Written | AB8: Select Premiums Written | AC8: Select Premiums Written | AD8: Select Premiums Written | AE8: Select Premiums Written | AF8: Select Premiums Written | AG8: Select Premiums Written | AH8: Select Premiums Written | AI8: Select Premiums Written | AJ8: Select Premiums Written | AK8: Select Premiums Written | AL8: Select Premiums Written | AM8: Select Premiums Written | AN8: Select Premiums Written | AO8: Select Premiums Written | AP8: Select Premiums Written | AQ8: Select Premiums Written | AR8: Select Premiums Written | AS8: Select Premiums Written | AT8: Select Premiums Written | AU8: Select Premiums Written | AV8: Select Premiums Written | AW8: Select Premiums Written | AX8: Select Premiums Written | AY8: Select Premiums Written | AZ8: Select Premiums Written | BA8: Select Premiums Written
B9: (D) | C9: Total statutory assets | BC9: =SUM(D9:BA9) -> 0 | BG9: =BC9+BE9 -> 0 | BI9: Form 1A Line 15 | BK9: =IFERROR(ROUND(BG9-BI9,0),0) -> 0
B10: (E) | C10: Total statutory liabilities | BC10: =SUM(D10:BA10) -> 0 | BG10: =BC10+BE10 -> 0 | BI10: Form 1A Line 39 | BK10: =IFERROR(ROUND(BG10-BI10,0),0) -> 0
B11: (F) | C11: Statutory surplus | BC11: 0 | BG11: 0
B12: (G) | C12: Statutory capital | BC12: 0 | BG12: 0
C13: Total statutory capital and surplus | D13: =D11+D12 -> 0 | E13: 0 | F13: 0 | G13: 0 | H13: 0 | I13: 0 | J13: 0 | K13: 0 | L13: 0 | M13: 0 | N13: 0 | O13: 0 | P13: 0 | Q13: 0 | R13: 0 | S13: 0 | T13: 0 | U13: 0 | V13: 0 | W13: 0 | X13: 0 | Y13: 0 | Z13: 0 | AA13: 0 | AB13: 0 | AC13: 0 | AD13: 0 | AE13: 0 | AF13: 0 | AG13: 0 | AH13: 0 | AI13: 0 | AJ13: 0 | AK13: 0 | AL13: 0 | AM13: 0 | AN13: 0 | AO13: 0 | AP13: 0 | AQ13: 0 | AR13: 0 | AS13: 0 | AT13: 0 | AU13: 0 | AV13: 0 | AW13: 0 | AX13: 0 | AY13: 0 | AZ13: 0 | BA13: 0 | BC13: 0 | BE13: =BE11+BE12 -> 0 | BG13: =SUM(H13:BE13) -> 0 | BI13: Form 1A Line 40 | BK13: =IFERROR(ROUND(BG13-BI13,0),0) -> 0
B14: (H) | C14: Net income | BC14: 0 | BG14: 0
B15: (I) | C15: Cash | BC15: 0 | BG15: 0
B16: (J) | C16: Quoted: bonds and debentures | BC16: 0 | BG16: 0
B17: (K) | C17: Quoted: equites | BC17: 0 | BG17: 0
B18: (L) | C18: Quoted: other | BC18: 0 | BG18: 0
B19: (M) | C19: Unquoted: bonds and debentures | BC19: 0 | BG19: 0
B20: (N) | C20: Unquoted: equities | BC20: 0 | BG20: 0
B21: (O) | C21: Unquoted: other | BC21: 0 | BG21: 0
B22: (P) | C22: Due from affiliates | BC22: 0 | BG22: 0
B23: (Q) | C23: Due to affiliates | BC23: 0 | BG23: 0
B24: (R) | C24: Net loss and loss expense provisions | BC24: 0 | BG24: 0
B25: (S) | C25: Prior year loss reserve development | BC25: 0 | BG25: 0
B26: (T) | C26: Reinsurance recoverable balance | BC26: 0 | BG26: 0
B27: (U) | C27: Cell is in run-off | D27: Select Yes/No | E27: Select Yes/No | F27: Select Yes/No | G27: Select Yes/No | H27: Select Yes/No | I27: Select Yes/No | J27: Select Yes/No | K27: Select Yes/No | L27: Select Yes/No | M27: Select Yes/No | N27: Select Yes/No | O27: Select Yes/No | P27: Select Yes/No | Q27: Select Yes/No | R27: Select Yes/No | S27: Select Yes/No | T27: Select Yes/No | U27: Select Yes/No | V27: Select Yes/No | W27: Select Yes/No | X27: Select Yes/No | Y27: Select Yes/No | Z27: Select Yes/No | AA27: Select Yes/No | AB27: Select Yes/No | AC27: Select Yes/No | AD27: Select Yes/No | AE27: Select Yes/No | AF27: Select Yes/No | AG27: Select Yes/No | AH27: Select Yes/No | AI27: Select Yes/No | AJ27: Select Yes/No | AK27: Select Yes/No | AL27: Select Yes/No | AM27: Select Yes/No | AN27: Select Yes/No | AO27: Select Yes/No | AP27: Select Yes/No | AQ27: Select Yes/No | AR27: Select Yes/No | AS27: Select Yes/No | AT27: Select Yes/No | AU27: Select Yes/No | AV27: Select Yes/No | AW27: Select Yes/No | AX27: Select Yes/No | AY27: Select Yes/No | AZ27: Select Yes/No | BA27: Select Yes/No
B28: (V) | C28: Currency used | D28: Select Currency | E28: Select Currency | F28: Select Currency | G28: Select Currency | H28: Select Currency | I28: Select Currency | J28: Select Currency | K28: Select Currency | L28: Select Currency | M28: Select Currency | N28: Select Currency | O28: Select Currency | P28: Select Currency | Q28: Select Currency | R28: Select Currency | S28: Select Currency | T28: Select Currency | U28: Select Currency | V28: Select Currency | W28: Select Currency | X28: Select Currency | Y28: Select Currency | Z28: Select Currency | AA28: Select Currency | AB28: Select Currency | AC28: Select Currency | AD28: Select Currency | AE28: Select Currency | AF28: Select Currency | AG28: Select Currency | AH28: Select Currency | AI28: Select Currency | AJ28: Select Currency | AK28: Select Currency | AL28: Select Currency | AM28: Select Currency | AN28: Select Currency | AO28: Select Currency | AP28: Select Currency | AQ28: Select Currency | AR28: Select Currency | AS28: Select Currency | AT28: Select Currency | AU28: Select Currency | AV28: Select Currency | AW28: Select Currency | AX28: Select Currency | AY28: Select Currency | AZ28: Select Currency | BA28: Select Currency
B29: (W) | C29: Cell to cell activity | D29: Confirm Activity | E29: Confirm Activity | F29: Confirm Activity | G29: Confirm Activity | H29: Confirm Activity | I29: Confirm Activity | J29: Confirm Activity | K29: Confirm Activity | L29: Confirm Activity | M29: Confirm Activity | N29: Confirm Activity | O29: Confirm Activity | P29: Confirm Activity | Q29: Confirm Activity | R29: Confirm Activity | S29: Confirm Activity | T29: Confirm Activity | U29: Confirm Activity | V29: Confirm Activity | W29: Confirm Activity | X29: Confirm Activity | Y29: Confirm Activity | Z29: Confirm Activity | AA29: Confirm Activity | AB29: Confirm Activity | AC29: Confirm Activity | AD29: Confirm Activity | AE29: Confirm Activity | AF29: Confirm Activity | AG29: Confirm Activity | AH29: Confirm Activity | AI29: Confirm Activity | AJ29: Confirm Activity | AK29: Confirm Activity | AL29: Confirm Activity | AM29: Confirm Activity | AN29: Confirm Activity | AO29: Confirm Activity | AP29: Confirm Activity | AQ29: Confirm Activity | AR29: Confirm Activity | AS29: Confirm Activity | AT29: Confirm Activity | AU29: Confirm Activity | AV29: Confirm Activity | AW29: Confirm Activity | AX29: Confirm Activity | AY29: Confirm Activity | AZ29: Confirm Activity | BA29: Confirm Activity
B30: (W.1) | C30: Cell to cell activity details
B31: (X) | C31: General cell to cell activity | D31: Confirm Activity | E31: Confirm Activity | F31: Confirm Activity | G31: Confirm Activity | H31: Confirm Activity | I31: Confirm Activity | J31: Confirm Activity | K31: Confirm Activity | L31: Confirm Activity | M31: Confirm Activity | N31: Confirm Activity | O31: Confirm Activity | P31: Confirm Activity | Q31: Confirm Activity | R31: Confirm Activity | S31: Confirm Activity | T31: Confirm Activity | U31: Confirm Activity | V31: Confirm Activity | W31: Confirm Activity | X31: Confirm Activity | Y31: Confirm Activity | Z31: Confirm Activity | AA31: Confirm Activity | AB31: Confirm Activity | AC31: Confirm Activity | AD31: Confirm Activity | AE31: Confirm Activity | AF31: Confirm Activity | AG31: Confirm Activity | AH31: Confirm Activity | AI31: Confirm Activity | AJ31: Confirm Activity | AK31: Confirm Activity | AL31: Confirm Activity | AM31: Confirm Activity | AN31: Confirm Activity | AO31: Confirm Activity | AP31: Confirm Activity | AQ31: Confirm Activity | AR31: Confirm Activity | AS31: Confirm Activity | AT31: Confirm Activity | AU31: Confirm Activity | AV31: Confirm Activity | AW31: Confirm Activity | AX31: Confirm Activity | AY31: Confirm Activity | AZ31: Confirm Activity | BA31: Confirm Activity
B32: (X.1) | C32: General cell to cell activity details
B33: (Y) | C33: Where a cell is in deficit, insolvent or subject to litigation, provide or attach details of remediation actions or update on proceedings
B34: (Z) | C34: Additional capital support | D34: Confirm | E34: Confirm | F34: Confirm | G34: Confirm | H34: Confirm | I34: Confirm | J34: Confirm | K34: Confirm | L34: Confirm | M34: Confirm | N34: Confirm | O34: Confirm | P34: Confirm | Q34: Confirm | R34: Confirm | S34: Confirm | T34: Confirm | U34: Confirm | V34: Confirm | W34: Confirm | X34: Confirm | Y34: Confirm | Z34: Confirm | AA34: Confirm | AB34: Confirm | AC34: Confirm | AD34: Confirm | AE34: Confirm | AF34: Confirm | AG34: Confirm | AH34: Confirm | AI34: Confirm | AJ34: Confirm | AK34: Confirm | AL34: Confirm | AM34: Confirm | AN34: Confirm | AO34: Confirm | AP34: Confirm | AQ34: Confirm | AR34: Confirm | AS34: Confirm | AT34: Confirm | AU34: Confirm | AV34: Confirm | AW34: Confirm | AX34: Confirm | AY34: Confirm | AZ34: Confirm | BA34: Confirm
B35: (Z.1) | C35: Additional capital support details
B36: (AA) | C36: Details of beneficial owners and their relationship to the underlying risk | D36: Confirm | E36: Confirm | F36: Confirm | G36: Confirm | H36: Confirm | I36: Confirm | J36: Confirm | K36: Confirm | L36: Confirm | M36: Confirm | N36: Confirm | O36: Confirm | P36: Confirm | Q36: Confirm | R36: Confirm | S36: Confirm | T36: Confirm | U36: Confirm | V36: Confirm | W36: Confirm | X36: Confirm | Y36: Confirm | Z36: Confirm | AA36: Confirm | AB36: Confirm | AC36: Confirm | AD36: Confirm | AE36: Confirm | AF36: Confirm | AG36: Confirm | AH36: Confirm | AI36: Confirm | AJ36: Confirm | AK36: Confirm | AL36: Confirm | AM36: Confirm | AN36: Confirm | AO36: Confirm | AP36: Confirm | AQ36: Confirm | AR36: Confirm | AS36: Confirm | AT36: Confirm | AU36: Confirm | AV36: Confirm | AW36: Confirm | AX36: Confirm | AY36: Confirm | AZ36: Confirm | BA36: Confirm
B37: (AB) | C37: Beneficial owner(s) relationship to the segregated account company ownership | D37: Confirm | E37: Confirm | F37: Confirm | G37: Confirm | H37: Confirm | I37: Confirm | J37: Confirm | K37: Confirm | L37: Confirm | M37: Confirm | N37: Confirm | O37: Confirm | P37: Confirm | Q37: Confirm | R37: Confirm | S37: Confirm | T37: Confirm | U37: Confirm | V37: Confirm | W37: Confirm | X37: Confirm | Y37: Confirm | Z37: Confirm | AA37: Confirm | AB37: Confirm | AC37: Confirm | AD37: Confirm | AE37: Confirm | AF37: Confirm | AG37: Confirm | AH37: Confirm | AI37: Confirm | AJ37: Confirm | AK37: Confirm | AL37: Confirm | AM37: Confirm | AN37: Confirm | AO37: Confirm | AP37: Confirm | AQ37: Confirm | AR37: Confirm | AS37: Confirm | AT37: Confirm | AU37: Confirm | AV37: Confirm | AW37: Confirm | AX37: Confirm | AY37: Confirm | AZ37: Confirm | BA37: Confirm
B38: (AC) | C38: Beneficial owner(s) | D38: Confirm Beneficial Owner | E38: Confirm Beneficial Owner | F38: Confirm Beneficial Owner | G38: Confirm Beneficial Owner | H38: Confirm Beneficial Owner | I38: Confirm Beneficial Owner | J38: Confirm Beneficial Owner | K38: Confirm Beneficial Owner | L38: Confirm Beneficial Owner | M38: Confirm Beneficial Owner | N38: Confirm Beneficial Owner | O38: Confirm Beneficial Owner | P38: Confirm Beneficial Owner | Q38: Confirm Beneficial Owner | R38: Confirm Beneficial Owner | S38: Confirm Beneficial Owner | T38: Confirm Beneficial Owner | U38: Confirm Beneficial Owner | V38: Confirm Beneficial Owner | W38: Confirm Beneficial Owner | X38: Confirm Beneficial Owner | Y38: Confirm Beneficial Owner | Z38: Confirm Beneficial Owner | AA38: Confirm Beneficial Owner | AB38: Confirm Beneficial Owner | AC38: Confirm Beneficial Owner | AD38: Confirm Beneficial Owner | AE38: Confirm Beneficial Owner | AF38: Confirm Beneficial Owner | AG38: Confirm Beneficial Owner | AH38: Confirm Beneficial Owner | AI38: Confirm Beneficial Owner | AJ38: Confirm Beneficial Owner | AK38: Confirm Beneficial Owner | AL38: Confirm Beneficial Owner | AM38: Confirm Beneficial Owner | AN38: Confirm Beneficial Owner | AO38: Confirm Beneficial Owner | AP38: Confirm Beneficial Owner | AQ38: Confirm Beneficial Owner | AR38: Confirm Beneficial Owner | AS38: Confirm Beneficial Owner | AT38: Confirm Beneficial Owner | AU38: Confirm Beneficial Owner | AV38: Confirm Beneficial Owner | AW38: Confirm Beneficial Owner | AX38: Confirm Beneficial Owner | AY38: Confirm Beneficial Owner | AZ38: Confirm Beneficial Owner | BA38: Confirm Beneficial Owner
B39: (AD) | C39: Beneficial ownership | D39: Confirm Ownership | E39: Confirm Ownership | F39: Confirm Ownership | G39: Confirm Ownership | H39: Confirm Ownership | I39: Confirm Ownership | J39: Confirm Ownership | K39: Confirm Ownership | L39: Confirm Ownership | M39: Confirm Ownership | N39: Confirm Ownership | O39: Confirm Ownership | P39: Confirm Ownership | Q39: Confirm Ownership | R39: Confirm Ownership | S39: Confirm Ownership | T39: Confirm Ownership | U39: Confirm Ownership | V39: Confirm Ownership | W39: Confirm Ownership | X39: Confirm Ownership | Y39: Confirm Ownership | Z39: Confirm Ownership | AA39: Confirm Ownership | AB39: Confirm Ownership | AC39: Confirm Ownership | AD39: Confirm Ownership | AE39: Confirm Ownership | AF39: Confirm Ownership | AG39: Confirm Ownership | AH39: Confirm Ownership | AI39: Confirm Ownership | AJ39: Confirm Ownership | AK39: Confirm Ownership | AL39: Confirm Ownership | AM39: Confirm Ownership | AN39: Confirm Ownership | AO39: Confirm Ownership | AP39: Confirm Ownership | AQ39: Confirm Ownership | AR39: Confirm Ownership | AS39: Confirm Ownership | AT39: Confirm Ownership | AU39: Confirm Ownership | AV39: Confirm Ownership | AW39: Confirm Ownership | AX39: Confirm Ownership | AY39: Confirm Ownership | AZ39: Confirm Ownership | BA39: Confirm Ownership
B40: (AD.1) | C40: Beneficial ownership details (if other is chosen)
B41: (AE) | C41: Details of the principal jurisdiction of the underlying risk | D41: Confirm Jurisdiction | E41: Confirm Jurisdiction | F41: Confirm Jurisdiction | G41: Confirm Jurisdiction | H41: Confirm Jurisdiction | I41: Confirm Jurisdiction | J41: Confirm Jurisdiction | K41: Confirm Jurisdiction | L41: Confirm Jurisdiction | M41: Confirm Jurisdiction | N41: Confirm Jurisdiction | O41: Confirm Jurisdiction | P41: Confirm Jurisdiction | Q41: Confirm Jurisdiction | R41: Confirm Jurisdiction | S41: Confirm Jurisdiction | T41: Confirm Jurisdiction | U41: Confirm Jurisdiction | V41: Confirm Jurisdiction | W41: Confirm Jurisdiction | X41: Confirm Jurisdiction | Y41: Confirm Jurisdiction | Z41: Confirm Jurisdiction | AA41: Confirm Jurisdiction | AB41: Confirm Jurisdiction | AC41: Confirm Jurisdiction | AD41: Confirm Jurisdiction | AE41: Confirm Jurisdiction | AF41: Confirm Jurisdiction | AG41: Confirm Jurisdiction | AH41: Confirm Jurisdiction | AI41: Confirm Jurisdiction | AJ41: Confirm Jurisdiction | AK41: Confirm Jurisdiction | AL41: Confirm Jurisdiction | AM41: Confirm Jurisdiction | AN41: Confirm Jurisdiction | AO41: Confirm Jurisdiction | AP41: Confirm Jurisdiction | AQ41: Confirm Jurisdiction | AR41: Confirm Jurisdiction | AS41: Confirm Jurisdiction | AT41: Confirm Jurisdiction | AU41: Confirm Jurisdiction | AV41: Confirm Jurisdiction | AW41: Confirm Jurisdiction | AX41: Confirm Jurisdiction | AY41: Confirm Jurisdiction | AZ41: Confirm Jurisdiction | BA41: Confirm Jurisdiction
B42: (AF) | C42: Beneficial owner governing instrument | D42: Confirm Instrument | E42: Confirm Instrument | F42: Confirm Instrument | G42: Confirm Instrument | H42: Confirm Instrument | I42: Confirm Instrument | J42: Confirm Instrument | K42: Confirm Instrument | L42: Confirm Instrument | M42: Confirm Instrument | N42: Confirm Instrument | O42: Confirm Instrument | P42: Confirm Instrument | Q42: Confirm Instrument | R42: Confirm Instrument | S42: Confirm Instrument | T42: Confirm Instrument | U42: Confirm Instrument | V42: Confirm Instrument | W42: Confirm Instrument | X42: Confirm Instrument | Y42: Confirm Instrument | Z42: Confirm Instrument | AA42: Confirm Instrument | AB42: Confirm Instrument | AC42: Confirm Instrument | AD42: Confirm Instrument | AE42: Confirm Instrument | AF42: Confirm Instrument | AG42: Confirm Instrument | AH42: Confirm Instrument | AI42: Confirm Instrument | AJ42: Confirm Instrument | AK42: Confirm Instrument | AL42: Confirm Instrument | AM42: Confirm Instrument | AN42: Confirm Instrument | AO42: Confirm Instrument | AP42: Confirm Instrument | AQ42: Confirm Instrument | AR42: Confirm Instrument | AS42: Confirm Instrument | AT42: Confirm Instrument | AU42: Confirm Instrument | AV42: Confirm Instrument | AW42: Confirm Instrument | AX42: Confirm Instrument | AY42: Confirm Instrument | AZ42: Confirm Instrument | BA42: Confirm Instrument
B43: (AF.1) | C43: Beneficial owner governing instrument (if other is chosen)
B44: (AG) | C44: Does beneficial owner governing instrument contain indemnity provisions | D44: Select Yes/No | E44: Select Yes/No | F44: Select Yes/No | G44: Select Yes/No | H44: Select Yes/No | I44: Select Yes/No | J44: Select Yes/No | K44: Select Yes/No | L44: Select Yes/No | M44: Select Yes/No | N44: Select Yes/No | O44: Select Yes/No | P44: Select Yes/No | Q44: Select Yes/No | R44: Select Yes/No | S44: Select Yes/No | T44: Select Yes/No | U44: Select Yes/No | V44: Select Yes/No | W44: Select Yes/No | X44: Select Yes/No | Y44: Select Yes/No | Z44: Select Yes/No | AA44: Select Yes/No | AB44: Select Yes/No | AC44: Select Yes/No | AD44: Select Yes/No | AE44: Select Yes/No | AF44: Select Yes/No | AG44: Select Yes/No | AH44: Select Yes/No | AI44: Select Yes/No | AJ44: Select Yes/No | AK44: Select Yes/No | AL44: Select Yes/No | AM44: Select Yes/No | AN44: Select Yes/No | AO44: Select Yes/No | AP44: Select Yes/No | AQ44: Select Yes/No | AR44: Select Yes/No | AS44: Select Yes/No | AT44: Select Yes/No | AU44: Select Yes/No | AV44: Select Yes/No | AW44: Select Yes/No | AX44: Select Yes/No | AY44: Select Yes/No | AZ44: Select Yes/No | BA44: Select Yes/No
B45: (AH) | C45: Does insurance/reinsurance agreement contain limited recourse language | D45: Select Yes/No | E45: Select Yes/No | F45: Select Yes/No | G45: Select Yes/No | H45: Select Yes/No | I45: Select Yes/No | J45: Select Yes/No | K45: Select Yes/No | L45: Select Yes/No | M45: Select Yes/No | N45: Select Yes/No | O45: Select Yes/No | P45: Select Yes/No | Q45: Select Yes/No | R45: Select Yes/No | S45: Select Yes/No | T45: Select Yes/No | U45: Select Yes/No | V45: Select Yes/No | W45: Select Yes/No | X45: Select Yes/No | Y45: Select Yes/No | Z45: Select Yes/No | AA45: Select Yes/No | AB45: Select Yes/No | AC45: Select Yes/No | AD45: Select Yes/No | AE45: Select Yes/No | AF45: Select Yes/No | AG45: Select Yes/No | AH45: Select Yes/No | AI45: Select Yes/No | AJ45: Select Yes/No | AK45: Select Yes/No | AL45: Select Yes/No | AM45: Select Yes/No | AN45: Select Yes/No | AO45: Select Yes/No | AP45: Select Yes/No | AQ45: Select Yes/No | AR45: Select Yes/No | AS45: Select Yes/No | AT45: Select Yes/No | AU45: Select Yes/No | AV45: Select Yes/No | AW45: Select Yes/No | AX45: Select Yes/No | AY45: Select Yes/No | AZ45: Select Yes/No | BA45: Select Yes/No
B46: (AI) | C46: Primary cell funding | D46: Select Funding | E46: Select Funding | F46: Select Funding | G46: Select Funding | H46: Select Funding | I46: Select Funding | J46: Select Funding | K46: Select Funding | L46: Select Funding | M46: Select Funding | N46: Select Funding | O46: Select Funding | P46: Select Funding | Q46: Select Funding | R46: Select Funding | S46: Select Funding | T46: Select Funding | U46: Select Funding | V46: Select Funding | W46: Select Funding | X46: Select Funding | Y46: Select Funding | Z46: Select Funding | AA46: Select Funding | AB46: Select Funding | AC46: Select Funding | AD46: Select Funding | AE46: Select Funding | AF46: Select Funding | AG46: Select Funding | AH46: Select Funding | AI46: Select Funding | AJ46: Select Funding | AK46: Select Funding | AL46: Select Funding | AM46: Select Funding | AN46: Select Funding | AO46: Select Funding | AP46: Select Funding | AQ46: Select Funding | AR46: Select Funding | AS46: Select Funding | AT46: Select Funding | AU46: Select Funding | AV46: Select Funding | AW46: Select Funding | AX46: Select Funding | AY46: Select Funding | AZ46: Select Funding | BA46: Select Funding
B47: (AJ) | C47: Limit of cell funding/collateral | D47: Confirm Funding / Collateral | E47: Confirm Funding / Collateral | F47: Confirm Funding / Collateral | G47: Confirm Funding / Collateral | H47: Confirm Funding / Collateral | I47: Confirm Funding / Collateral | J47: Confirm Funding / Collateral | K47: Confirm Funding / Collateral | L47: Confirm Funding / Collateral | M47: Confirm Funding / Collateral | N47: Confirm Funding / Collateral | O47: Confirm Funding / Collateral | P47: Confirm Funding / Collateral | Q47: Confirm Funding / Collateral | R47: Confirm Funding / Collateral | S47: Confirm Funding / Collateral | T47: Confirm Funding / Collateral | U47: Confirm Funding / Collateral | V47: Confirm Funding / Collateral | W47: Confirm Funding / Collateral | X47: Confirm Funding / Collateral | Y47: Confirm Funding / Collateral | Z47: Confirm Funding / Collateral | AA47: Confirm Funding / Collateral | AB47: Confirm Funding / Collateral | AC47: Confirm Funding / Collateral | AD47: Confirm Funding / Collateral | AE47: Confirm Funding / Collateral | AF47: Confirm Funding / Collateral | AG47: Confirm Funding / Collateral | AH47: Confirm Funding / Collateral | AI47: Confirm Funding / Collateral | AJ47: Confirm Funding / Collateral | AK47: Confirm Funding / Collateral | AL47: Confirm Funding / Collateral | AM47: Confirm Funding / Collateral | AN47: Confirm Funding / Collateral | AO47: Confirm Funding / Collateral | AP47: Confirm Funding / Collateral | AQ47: Confirm Funding / Collateral | AR47: Confirm Funding / Collateral | AS47: Confirm Funding / Collateral | AT47: Confirm Funding / Collateral | AU47: Confirm Funding / Collateral | AV47: Confirm Funding / Collateral | AW47: Confirm Funding / Collateral | AX47: Confirm Funding / Collateral | AY47: Confirm Funding / Collateral | AZ47: Confirm Funding / Collateral | BA47: Confirm Funding / Collateral
B48: (AJ.1) | C48: Limit of cell funding/collateral details
B49: (AK) | C49: What mitigates are in place with respect to operational risk | D49: Confirm Mitigates & Attach Support | E49: Confirm Mitigates & Attach Support | F49: Confirm Mitigates & Attach Support | G49: Confirm Mitigates & Attach Support | H49: Confirm Mitigates & Attach Support | I49: Confirm Mitigates & Attach Support | J49: Confirm Mitigates & Attach Support | K49: Confirm Mitigates & Attach Support | L49: Confirm Mitigates & Attach Support | M49: Confirm Mitigates & Attach Support | N49: Confirm Mitigates & Attach Support | O49: Confirm Mitigates & Attach Support | P49: Confirm Mitigates & Attach Support | Q49: Confirm Mitigates & Attach Support | R49: Confirm Mitigates & Attach Support | S49: Confirm Mitigates & Attach Support | T49: Confirm Mitigates & Attach Support | U49: Confirm Mitigates & Attach Support | V49: Confirm Mitigates & Attach Support | W49: Confirm Mitigates & Attach Support | X49: Confirm Mitigates & Attach Support | Y49: Confirm Mitigates & Attach Support | Z49: Confirm Mitigates & Attach Support | AA49: Confirm Mitigates & Attach Support | AB49: Confirm Mitigates & Attach Support | AC49: Confirm Mitigates & Attach Support | AD49: Confirm Mitigates & Attach Support | AE49: Confirm Mitigates & Attach Support | AF49: Confirm Mitigates & Attach Support | AG49: Confirm Mitigates & Attach Support | AH49: Confirm Mitigates & Attach Support | AI49: Confirm Mitigates & Attach Support | AJ49: Confirm Mitigates & Attach Support | AK49: Confirm Mitigates & Attach Support | AL49: Confirm Mitigates & Attach Support | AM49: Confirm Mitigates & Attach Support | AN49: Confirm Mitigates & Attach Support | AO49: Confirm Mitigates & Attach Support | AP49: Confirm Mitigates & Attach Support | AQ49: Confirm Mitigates & Attach Support | AR49: Confirm Mitigates & Attach Support | AS49: Confirm Mitigates & Attach Support | AT49: Confirm Mitigates & Attach Support | AU49: Confirm Mitigates & Attach Support | AV49: Confirm Mitigates & Attach Support | AW49: Confirm Mitigates & Attach Support | AX49: Confirm Mitigates & Attach Support | AY49: Confirm Mitigates & Attach Support | AZ49: Confirm Mitigates & Attach Support | BA49: Confirm Mitigates & Attach Support
C51: Balance Sheet Check | D51: =IF((ROUND(D9-D10-D11-D12,2))=0,"Yes","No") -> Yes | E51: =IF((ROUND(E9-E10-E11-E12,2))=0,"Yes","No") -> Yes | F51: Yes | G51: Yes | H51: Yes | I51: Yes | J51: Yes | K51: Yes | L51: Yes | M51: Yes | N51: Yes | O51: Yes | P51: Yes | Q51: Yes | R51: Yes | S51: Yes | T51: Yes | U51: Yes | V51: Yes | W51: Yes | X51: Yes | Y51: Yes | Z51: Yes | AA51: Yes | AB51: Yes | AC51: Yes | AD51: Yes | AE51: Yes | AF51: Yes | AG51: Yes | AH51: Yes | AI51: Yes | AJ51: Yes | AK51: Yes | AL51: Yes | AM51: Yes | AN51: Yes | AO51: Yes | AP51: Yes | AQ51: Yes | AR51: Yes | AS51: Yes | AT51: Yes | AU51: Yes | AV51: Yes | AW51: Yes | AX51: Yes | AY51: Yes | AZ51: Yes | BA51: Yes
C52: Difference | D52: =ROUND(D9-D10-D11-D12,2) -> 0 | E52: =ROUND(E9-E10-E11-E12,2) -> 0 | F52: 0 | G52: 0 | H52: 0 | I52: 0 | J52: 0 | K52: 0 | L52: 0 | M52: 0 | N52: 0 | O52: 0 | P52: 0 | Q52: 0 | R52: 0 | S52: 0 | T52: 0 | U52: 0 | V52: 0 | W52: 0 | X52: 0 | Y52: 0 | Z52: 0 | AA52: 0 | AB52: 0 | AC52: 0 | AD52: 0 | AE52: 0 | AF52: 0 | AG52: 0 | AH52: 0 | AI52: 0 | AJ52: 0 | AK52: 0 | AL52: 0 | AM52: 0 | AN52: 0 | AO52: 0 | AP52: 0 | AQ52: 0 | AR52: 0 | AS52: 0 | AT52: 0 | AU52: 0 | AV52: 0 | AW52: 0 | AX52: 0 | AY52: 0 | AZ52: 0 | BA52: 0
B54: (AL) | C54: Lines of business written by premium written
B55: (i) | C55: Statutory lines of business written | D55: Select Line of Business | E55: Select Line of Business | F55: Select Line of Business | G55: Select Line of Business | H55: Select Line of Business | I55: Select Line of Business | J55: Select Line of Business | K55: Select Line of Business | L55: Select Line of Business | M55: Select Line of Business | N55: Select Line of Business | O55: Select Line of Business | P55: Select Line of Business | Q55: Select Line of Business | R55: Select Line of Business | S55: Select Line of Business | T55: Select Line of Business | U55: Select Line of Business | V55: Select Line of Business | W55: Select Line of Business | X55: Select Line of Business | Y55: Select Line of Business | Z55: Select Line of Business | AA55: Select Line of Business | AB55: Select Line of Business | AC55: Select Line of Business | AD55: Select Line of Business | AE55: Select Line of Business | AF55: Select Line of Business | AG55: Select Line of Business | AH55: Select Line of Business | AI55: Select Line of Business | AJ55: Select Line of Business | AK55: Select Line of Business | AL55: Select Line of Business | AM55: Select Line of Business | AN55: Select Line of Business | AO55: Select Line of Business | AP55: Select Line of Business | AQ55: Select Line of Business | AR55: Select Line of Business | AS55: Select Line of Business | AT55: Select Line of Business | AU55: Select Line of Business | AV55: Select Line of Business | AW55: Select Line of Business | AX55: Select Line of Business | AY55: Select Line of Business | AZ55: Select Line of Business | BA55: Select Line of Business | BE55: Select Line of Business
C56: Gross premiums written
C57: Reinsurance ceded
C58: Net premiums written | D58: =D56-D57 -> 0 | E58: 0 | F58: 0 | G58: 0 | H58: 0 | I58: 0 | J58: 0 | K58: 0 | L58: 0 | M58: 0 | N58: 0 | O58: 0 | P58: 0 | Q58: 0 | R58: 0 | S58: 0 | T58: 0 | U58: 0 | V58: 0 | W58: 0 | X58: 0 | Y58: 0 | Z58: 0 | AA58: 0 | AB58: 0 | AC58: 0 | AD58: 0 | AE58: 0 | AF58: 0 | AG58: 0 | AH58: 0 | AI58: 0 | AJ58: 0 | AK58: 0 | AL58: 0 | AM58: 0 | AN58: 0 | AO58: 0 | AP58: 0 | AQ58: 0 | AR58: 0 | AS58: 0 | AT58: 0 | AU58: 0 | AV58: 0 | AW58: 0 | AX58: 0 | AY58: 0 | AZ58: 0 | BA58: 0 | BE58: =BE56-BE57 -> 0
B59: (ii) | C59: Statutory lines of business written | D59: Select Line of Business | E59: Select Line of Business | F59: Select Line of Business | G59: Select Line of Business | H59: Select Line of Business | I59: Select Line of Business | J59: Select Line of Business | K59: Select Line of Business | L59: Select Line of Business | M59: Select Line of Business | N59: Select Line of Business | O59: Select Line of Business | P59: Select Line of Business | Q59: Select Line of Business | R59: Select Line of Business | S59: Select Line of Business | T59: Select Line of Business | U59: Select Line of Business | V59: Select Line of Business | W59: Select Line of Business | X59: Select Line of Business | Y59: Select Line of Business | Z59: Select Line of Business | AA59: Select Line of Business | AB59: Select Line of Business | AC59: Select Line of Business | AD59: Select Line of Business | AE59: Select Line of Business | AF59: Select Line of Business | AG59: Select Line of Business | AH59: Select Line of Business | AI59: Select Line of Business | AJ59: Select Line of Business | AK59: Select Line of Business | AL59: Select Line of Business | AM59: Select Line of Business | AN59: Select Line of Business | AO59: Select Line of Business | AP59: Select Line of Business | AQ59: Select Line of Business | AR59: Select Line of Business | AS59: Select Line of Business | AT59: Select Line of Business | AU59: Select Line of Business | AV59: Select Line of Business | AW59: Select Line of Business | AX59: Select Line of Business | AY59: Select Line of Business | AZ59: Select Line of Business | BA59: Select Line of Business | BE59: Select Line of Business
C60: Gross premiums written
C61: Reinsurance ceded
C62: Net premiums written | D62: =D60-D61 -> 0 | E62: 0 | F62: 0 | G62: 0 | H62: 0 | I62: 0 | J62: 0 | K62: 0 | L62: 0 | M62: 0 | N62: 0 | O62: 0 | P62: 0 | Q62: 0 | R62: 0 | S62: 0 | T62: 0 | U62: 0 | V62: 0 | W62: 0 | X62: 0 | Y62: 0 | Z62: 0 | AA62: 0 | AB62: 0 | AC62: 0 | AD62: 0 | AE62: 0 | AF62: 0 | AG62: 0 | AH62: 0 | AI62: 0 | AJ62: 0 | AK62: 0 | AL62: 0 | AM62: 0 | AN62: 0 | AO62: 0 | AP62: 0 | AQ62: 0 | AR62: 0 | AS62: 0 | AT62: 0 | AU62: 0 | AV62: 0 | AW62: 0 | AX62: 0 | AY62: 0 | AZ62: 0 | BA62: 0 | BE62: =BE60-BE61 -> 0
B63: (iii) | C63: Statutory lines of business written | D63: Select Line of Business | E63: Select Line of Business | F63: Select Line of Business | G63: Select Line of Business | H63: Select Line of Business | I63: Select Line of Business | J63: Select Line of Business | K63: Select Line of Business | L63: Select Line of Business | M63: Select Line of Business | N63: Select Line of Business | O63: Select Line of Business | P63: Select Line of Business | Q63: Select Line of Business | R63: Select Line of Business | S63: Select Line of Business | T63: Select Line of Business | U63: Select Line of Business | V63: Select Line of Business | W63: Select Line of Business | X63: Select Line of Business | Y63: Select Line of Business | Z63: Select Line of Business | AA63: Select Line of Business | AB63: Select Line of Business | AC63: Select Line of Business | AD63: Select Line of Business | AE63: Select Line of Business | AF63: Select Line of Business | AG63: Select Line of Business | AH63: Select Line of Business | AI63: Select Line of Business | AJ63: Select Line of Business | AK63: Select Line of Business | AL63: Select Line of Business | AM63: Select Line of Business | AN63: Select Line of Business | AO63: Select Line of Business | AP63: Select Line of Business | AQ63: Select Line of Business | AR63: Select Line of Business | AS63: Select Line of Business | AT63: Select Line of Business | AU63: Select Line of Business | AV63: Select Line of Business | AW63: Select Line of Business | AX63: Select Line of Business | AY63: Select Line of Business | AZ63: Select Line of Business | BA63: Select Line of Business | BE63: Select Line of Business
C64: Gross premiums written
C65: Reinsurance ceded
C66: Net premiums written | D66: =D64-D65 -> 0 | E66: 0 | F66: 0 | G66: 0 | H66: 0 | I66: 0 | J66: 0 | K66: 0 | L66: 0 | M66: 0 | N66: 0 | O66: 0 | P66: 0 | Q66: 0 | R66: 0 | S66: 0 | T66: 0 | U66: 0 | V66: 0 | W66: 0 | X66: 0 | Y66: 0 | Z66: 0 | AA66: 0 | AB66: 0 | AC66: 0 | AD66: 0 | AE66: 0 | AF66: 0 | AG66: 0 | AH66: 0 | AI66: 0 | AJ66: 0 | AK66: 0 | AL66: 0 | AM66: 0 | AN66: 0 | AO66: 0 | AP66: 0 | AQ66: 0 | AR66: 0 | AS66: 0 | AT66: 0 | AU66: 0 | AV66: 0 | AW66: 0 | AX66: 0 | AY66: 0 | AZ66: 0 | BA66: 0 | BE66: =BE64-BE65 -> 0
B67: (iv) | C67: Statutory lines of business written | D67: Select Line of Business | E67: Select Line of Business | F67: Select Line of Business | G67: Select Line of Business | H67: Select Line of Business | I67: Select Line of Business | J67: Select Line of Business | K67: Select Line of Business | L67: Select Line of Business | M67: Select Line of Business | N67: Select Line of Business | O67: Select Line of Business | P67: Select Line of Business | Q67: Select Line of Business | R67: Select Line of Business | S67: Select Line of Business | T67: Select Line of Business | U67: Select Line of Business | V67: Select Line of Business | W67: Select Line of Business | X67: Select Line of Business | Y67: Select Line of Business | Z67: Select Line of Business | AA67: Select Line of Business | AB67: Select Line of Business | AC67: Select Line of Business | AD67: Select Line of Business | AE67: Select Line of Business | AF67: Select Line of Business | AG67: Select Line of Business | AH67: Select Line of Business | AI67: Select Line of Business | AJ67: Select Line of Business | AK67: Select Line of Business | AL67: Select Line of Business | AM67: Select Line of Business | AN67: Select Line of Business | AO67: Select Line of Business | AP67: Select Line of Business | AQ67: Select Line of Business | AR67: Select Line of Business | AS67: Select Line of Business | AT67: Select Line of Business | AU67: Select Line of Business | AV67: Select Line of Business | AW67: Select Line of Business | AX67: Select Line of Business | AY67: Select Line of Business | AZ67: Select Line of Business | BA67: Select Line of Business | BE67: Select Line of Business
C68: Gross premiums written
C69: Reinsurance ceded
C70: Net premiums written | D70: =D68-D69 -> 0 | E70: 0 | F70: 0 | G70: 0 | H70: 0 | I70: 0 | J70: 0 | K70: 0 | L70: 0 | M70: 0 | N70: 0 | O70: 0 | P70: 0 | Q70: 0 | R70: 0 | S70: 0 | T70: 0 | U70: 0 | V70: 0 | W70: 0 | X70: 0 | Y70: 0 | Z70: 0 | AA70: 0 | AB70: 0 | AC70: 0 | AD70: 0 | AE70: 0 | AF70: 0 | AG70: 0 | AH70: 0 | AI70: 0 | AJ70: 0 | AK70: 0 | AL70: 0 | AM70: 0 | AN70: 0 | AO70: 0 | AP70: 0 | AQ70: 0 | AR70: 0 | AS70: 0 | AT70: 0 | AU70: 0 | AV70: 0 | AW70: 0 | AX70: 0 | AY70: 0 | AZ70: 0 | BA70: 0 | BE70: =BE68-BE69 -> 0
B71: (v) | C71: Statutory lines of business written | D71: Select Line of Business | E71: Select Line of Business | F71: Select Line of Business | G71: Select Line of Business | H71: Select Line of Business | I71: Select Line of Business | J71: Select Line of Business | K71: Select Line of Business | L71: Select Line of Business | M71: Select Line of Business | N71: Select Line of Business | O71: Select Line of Business | P71: Select Line of Business | Q71: Select Line of Business | R71: Select Line of Business | S71: Select Line of Business | T71: Select Line of Business | U71: Select Line of Business | V71: Select Line of Business | W71: Select Line of Business | X71: Select Line of Business | Y71: Select Line of Business | Z71: Select Line of Business | AA71: Select Line of Business | AB71: Select Line of Business | AC71: Select Line of Business | AD71: Select Line of Business | AE71: Select Line of Business | AF71: Select Line of Business | AG71: Select Line of Business | AH71: Select Line of Business | AI71: Select Line of Business | AJ71: Select Line of Business | AK71: Select Line of Business | AL71: Select Line of Business | AM71: Select Line of Business | AN71: Select Line of Business | AO71: Select Line of Business | AP71: Select Line of Business | AQ71: Select Line of Business | AR71: Select Line of Business | AS71: Select Line of Business | AT71: Select Line of Business | AU71: Select Line of Business | AV71: Select Line of Business | AW71: Select Line of Business | AX71: Select Line of Business | AY71: Select Line of Business | AZ71: Select Line of Business | BA71: Select Line of Business | BE71: Select Line of Business
C72: Gross premiums written
C73: Reinsurance ceded
C74: Net premiums written | D74: =D72-D73 -> 0 | E74: 0 | F74: 0 | G74: 0 | H74: 0 | I74: 0 | J74: 0 | K74: 0 | L74: 0 | M74: 0 | N74: 0 | O74: 0 | P74: 0 | Q74: 0 | R74: 0 | S74: 0 | T74: 0 | U74: 0 | V74: 0 | W74: 0 | X74: 0 | Y74: 0 | Z74: 0 | AA74: 0 | AB74: 0 | AC74: 0 | AD74: 0 | AE74: 0 | AF74: 0 | AG74: 0 | AH74: 0 | AI74: 0 | AJ74: 0 | AK74: 0 | AL74: 0 | AM74: 0 | AN74: 0 | AO74: 0 | AP74: 0 | AQ74: 0 | AR74: 0 | AS74: 0 | AT74: 0 | AU74: 0 | AV74: 0 | AW74: 0 | AX74: 0 | AY74: 0 | AZ74: 0 | BA74: 0 | BE74: =BE72-BE73 -> 0
C75: Total gross premiums written | D75: =D56+D60+D64+D68+D72 -> 0 | E75: =E56+E60+E64+E68+E72 -> 0 | F75: 0 | G75: 0 | H75: 0 | I75: 0 | J75: 0 | K75: 0 | L75: 0 | M75: 0 | N75: 0 | O75: 0 | P75: 0 | Q75: 0 | R75: 0 | S75: 0 | T75: 0 | U75: 0 | V75: 0 | W75: 0 | X75: 0 | Y75: 0 | Z75: 0 | AA75: 0 | AB75: 0 | AC75: 0 | AD75: 0 | AE75: 0 | AF75: 0 | AG75: 0 | AH75: 0 | AI75: 0 | AJ75: 0 | AK75: 0 | AL75: 0 | AM75: 0 | AN75: 0 | AO75: 0 | AP75: 0 | AQ75: 0 | AR75: 0 | AS75: 0 | AT75: 0 | AU75: 0 | AV75: 0 | AW75: 0 | AX75: 0 | AY75: 0 | AZ75: 0 | BA75: 0 | BC75: =SUM(D75:BA75) -> 0
C76: Total net premiums written | D76: =D58+D62+D66+D70+D74 -> 0 | E76: =E58+E62+E66+E70+E74 -> 0 | F76: 0 | G76: 0 | H76: 0 | I76: 0 | J76: 0 | K76: 0 | L76: 0 | M76: 0 | N76: 0 | O76: 0 | P76: 0 | Q76: 0 | R76: 0 | S76: 0 | T76: 0 | U76: 0 | V76: 0 | W76: 0 | X76: 0 | Y76: 0 | Z76: 0 | AA76: 0 | AB76: 0 | AC76: 0 | AD76: 0 | AE76: 0 | AF76: 0 | AG76: 0 | AH76: 0 | AI76: 0 | AJ76: 0 | AK76: 0 | AL76: 0 | AM76: 0 | AN76: 0 | AO76: 0 | AP76: 0 | AQ76: 0 | AR76: 0 | AS76: 0 | AT76: 0 | AU76: 0 | AV76: 0 | AW76: 0 | AX76: 0 | AY76: 0 | AZ76: 0 | BA76: 0 | BC76: 0
C78: Notional Minimum Margin of Solvency Test
C79: Test A $120,000 (General Account Only)
C80: Test B 10% of Net Premiums Written | D80: =IF(D9>0,D76*10%,"") ->  | E80: =IF(E9>0,E76*10%,"") -> 
C81: Test C 10% of Net Loss Provisions | D81: =IF(D9>0,D24*10%,"") ->  | E81: =IF(E9>0,E24*10%,"") ->  | BE81: =IF(BE9>0,BE24*10%,"") -> 
C83: Notional Minimum Margin of Solvency | D83: =IF(D9="","",MAX(D80,D81)) ->  | E83: =IF(E9="","",MAX(E80,E81)) ->  | BE83: =IF(BE9="","",MAX(BE79,BE80,BE81)) -> 
C85: Notional Enhanced Capital Requirement
C86: Summary - ECR
C87: Summary - Minimum Margin of Solvency
C88: ECR to Minimum Margin of Solvency | D88: =IF(D9="","",IF(D87=0,0,D86/D87)) ->  | E88: =IF(E9="","",IF(E87=0,0,E86/E87)) ->  | BE88: =IF(BE9="","",IF(BE87=0,0,BE86/BE87)) -> 
C90: Cell Notional ECR Requirement | D90: =IF(D9=0,"",D83*D88) ->  | E90: =IF(E9=0,"",E83*E88) ->  | BE90: =IF(BE9=0,"",BE83*BE88) -> 
C92: Cell Notional ECR Ratio | D92: =IF(D9=0,"",IF((D11+D12)=0,0,(D11+D12)/D90)) ->  | E92: =IF(E9=0,"",IF((E11+E12)=0,0,(E11+E12)/E90)) ->  | BE92: =IF(BE9=0,"",IF((BE11+BE12)=0,0,(BE11+BE12)/BE90)) -> 
E95: brrt_BondsAndDebentures | G95: brrt_BondsAndDebenturesFaceValue | H95: brrt_BondsAndDebenturesAverageRating | J95: Select Line of Business | L95: Confirm Jurisdiction | M95: Select Funding | N95: Select Currency | O95: Confirm Mitigates & Attach Support
C96: 01/01/2016 | E96: 01/01/2016 | G96: 01/01/2016 | H96: 01/01/2016 | J96: General Business | L96: Zone 1 - Central & Western Asia | M96: Cash | N96: Bermudian Dollar | O96: None | Q96: Yes
C97: 12/31/2016 | E97: 12/31/2016 | G97: 12/31/2016 | H97: 12/31/2016 | J97: Accident and Health, Travel, Personal Accident | L97: Zone 2 - Eastern Asia | M97: Lines of Credit | N97: US Dollar | O97: Provide Support in Attachments tab | Q97: No
D98: Select Yes/No | J98: Agriculture | L98: Zone 3 - South and South-Eastern Asia | M98: Guarantees | N98: Canadian Dollar
C99: Select Premiums Written | D99: Yes | E99: Confirm | G99: Confirm Activity | H99: Confirm Funding / Collateral | J99: Asbestos | L99: Zone 4 - Oceania | N99: Euro
C100: Direct Insurer | D100: No | E100: LOC | G100: None | H100: Up to Probable Maximum Loss | J100: Aviation - Hull, Liability and War | L100: Zone 5 - Northern Africa | N100: Japanese Yen
C101: Reinsurer | E101: Gurantees | G101: Reinsurance | H101: Up to Aggregate Limit | J101: Construction | L101: Zone 6 - Southern Africa | N101: Pound Sterling
C102: Both | E102: Capital Calls | G102: Other (Define) | H102: Reserves | J102: Credit / Surety | L102: Zone 7 - Eastern Europe | N102: Swiss Franc
E103: Other (Define) | H103: Total Reserves and expenses | J103: Crime and Fidelity | L103: Zone 8 - Northern Europe
H104: Other (define) | J104: Crime and Fraud | L104: Zone 9 - Southern Europe | N104: Afghanistan Afghani
J105: Cyber Risk | L105: Zone 10 - Western Europe | N105: Albanian Lek
E106: Confirm | J106: Energy - Onshore and offshore | L106: Zone 11 - Northern America (Excluding USA) | N106: Algerian Dinar
E107: Related | J107: Environmental Risk | L107: Zone 12 - Caribbean & Centeral America | N107: Angolan Kwanza
E108: Unrelated | J108: General liability - Public, Products, Umbrella, Product recall | L108: Zone 13 - Eastern South America | N108: Arab Emirates Dirham
J109: Life and Accident and Health (General Business approval) | L109: Zone 14 - Northern, Southern and Western South America | N109: Argentine Peso
E110: Confirm Beneficial Owner | J110: Marine - P&I, Cargo, Hull and Liability, War | L110: Zone 15 - North-East United States | N110: Armenian Dram
E111: Single | J111: Medical Malpractice | L111: Zone 16 - South-East United States | N111: Aruban Guilder
E112: Multiple | J112: Mortgage | L112: Zone 17 - Mid-West United States | N112: Australian Dollar
J113: Motor - APD and Liability | L113: Zone 18 - Western United States | N113: Azerbaijan New Manat
E114: Confirm Ownership | J114: Political Risks | N114: Bahamian Dollar
E115: Management General Agents & Brokers | J115: Professional Liability - Professional Indemnity, D&O, Bankers Blanket, E&O | N115: Bahraini Dinar
E116: Insurance Company | J116: Property Catastrophe | N116: Bangladeshi Taka
E117: Reinsurance Company | J117: Property Damage and Business Interruption | N117: Barbados Dollar
E118: Non-Insurance Company | J118: Property Retro | N118: Belarussian Ruble
E119: Non-Related Investors | G119: A or better | J119: Structured/Finite Reinsurance | N119: Belize Dollar
E120: Other | G120: BBB or equivalent | J120: Terrorism | N120: Bhutan Ngultrum
G121: B or better | J121: Warranty, Residual Value | N121: Boliviano
G122: unrated/other | J122: Workers Compensation/Employers Liability | N122: Botswana Pula
E123: Confirm Instrument | N123: Brazilian Real
E124: Non-Voting Preferred Shareholder Agreement | J124: Long Term Business | N124: Brunei Dollar
E125: Participation Agreement | J125: Mortality | N125: Burundi Franc
E126: Noteholder Agreement | J126: Critical Illness | N126: Cape Verde Escudo
E127: Contingent Commission Agreement | J127: Longevity | N127: Cayman Islands Dollar
E128: Other Agreement | J128: Deferred Annuities | N128: CFA Franc BCEAO
J129: Disability Income: Active lives with premium guarantee of - | N129: CFA Franc BEAC
J130: Less than or equal to 1 year | N130: CFP Franc
J131: More than 1 year but less than 5 years | N131: Chilean Peso
J132: Greater than 5 years | N132: Colombian Peso
J133: Disability Income: Actives lives for other | N133: Comoros Franc
J134: accident and sickness | N134: Costa Rican Colon
J135: Disability Income: Claims in payment | N135: Croatian Kuna
J136: Disability Income: Claims in payment for other | N136: Cuban Peso
J137: accident and sickness | N137: Czech Koruna
J138: Group Life | N138: Danish Krone
J139: Group Disability | N139: Denar
J140: Group Health | N140: Djibouti Franc
J141: Stop Loss | N141: Dominican Peso
J142: Rider | N142: East Caribbean Dollar
J143: Variable Annuities | N143: Ecuador Sucre
N144: Egyptian Pound
N145: El Salvador Colon
N146: Eritrean Nakfa
N147: Falkland Islands Pound
N148: Fiji Dollar
N149: Francs
N150: Gambian Dalasi
N151: Georgian Lari
N152: Ghanaian Cedi
N153: Gibraltar Pound
N154: Guatemalan Quetzal
N155: Guinea Franc
N156: Guinea-Bissau Peso
N157: Guyana Dollar
N158: Haitian Gourde
N159: Honduran Lempira
N160: Hong Kong Dollar
N161: Hungarian Forint
N162: Iceland Krona
N163: Indian Rupee
N164: Indonesian Rupiah
N165: Iraqi Dinar
N166: Israeli New Shekel
N167: Jamaican Dollar
N168: Jordanian Dinar
N169: Kampuchean Riel
N170: Kazakhstan Tenge
N171: Kenyan Shilling
N172: Korean Won
N173: Kuwaiti Dinar
N174: Lao Kip
N175: Latvian Lats
N176: Lebanese Pound
N177: Lesotho Loti
N178: Liberian Dollar
N179: Libyan Dinar
N180: Lithuanian Litas
N181: Macau Pataca
N182: Malagasy Franc
N183: Malawi Kwacha
N184: Malaysian Ringgit
N185: Maldive Rufiyaa
N186: Manat
M187: Marka | N187: Marka
M188: Moroccan Dirham | N188: Moroccan Dirham
M189: New Zealand Dollar | N189: New Zealand Dollar
M190: North Korean Won | N190: North Korean Won
M191: Norwegian Krone | N191: Norwegian Krone
M192: Norwegian Krone | N192: Norwegian Krone
M193: Som | N193: Som
M194: Sri Lanka Rupee | N194: Sri Lanka Rupee
M195: Sudanese Pound | N195: Sudanese Pound
M196: Surinam Dollar | N196: Surinam Dollar
M197: Swaziland Lilangeni | N197: Swaziland Lilangeni
M198: Swedish Krona | N198: Swedish Krona
M199: Syrian Pound | N199: Syrian Pound
M200: Taiwan Dollar | N200: Taiwan Dollar
M201: Tajik Somoni | N201: Tajik Somoni
M202: Tanzanian Shilling | N202: Tanzanian Shilling
M203: Thai Baht | N203: Thai Baht
M204: Tongan Pa'anga | N204: Tongan Pa'anga
M205: Trinidad and Tobago Dollar | N205: Trinidad and Tobago Dollar
M206: Tunisian Dollar | N206: Tunisian Dollar
M207: Turkish Lira | N207: Turkish Lira
M208: Uganda Shilling | N208: Uganda Shilling
M209: Ukraine Hryvnia | N209: Ukraine Hryvnia
... 8 more rows

Sheet Outsourcing
C1: OUTSOURCING SERVICES
C2: ='Cyber Risk'!$B$2 -> Enter Company Name
C3: ='Cyber Risk'!$B$4 -> 2021-12-31
C4: Completed By
G6: Confirmation | H6: Country of tax residency
B7: 1 | C7: Does your company have tax residency outside of Bermuda (e.g., has made a 953d election) | G7: Select Yes/No | H7: Select
B9: 2 | C9: Identify where the following functions/roles are being administered. If outsourced, please specify company and location in comments section.
G10: Comments
B11: (i) | C11: Principal representative | F11: Select Response
B12: (ii) | C12: Senior officer | F12: Select Response
B13: (iii) | C13: Accounting | F13: Select Response
B14: (iv) | C14: Preparation of Statutory Financial Return | F14: Select Response
B15: (v) | C15: Underwriting | F15: Select Response
B16: (vi) | C16: Claims handling | F16: Select Response
B17: (vii) | C17: Risk management | F17: Select Response
B18: (viii) | C18: Investment | F18: Select Response
B19: (ix) | C19: Treasury | F19: Select Response
B20: (x) | C20: Actuarial functions | F20: Select Response
B21: (xi) | C21: Internal audit | F21: Select Response
B22: (xii) | C22: Compliance | F22: Select Response
B23: (xiii) | C23: AML/ATF/Sanctions compliance | F23: Select Response
B24: (xiv) | C24: Money laundering reporting officer | F24: Select Response
B25: (xvi) | C25: Other (if other, disclose)
C29: Select | D29: Select | F29: Select | H29: Select Yes/No
C30: United Kingdom | D30: Insurance Manager | E30: Insurance Manager | F30: Insurer | H30: Yes | J30: Select
C31: United States of America | D31: Other Third Party | E31: Other Third Party | F31: Affiliate | H31: No | J31: Non-executive (Independent)
C32: Canada | D32: Affiliate | E32: Affiliate | F32: External service provider | J32: Non-executive (Affiliate)
J33: Non-executive (Service Provider)
C34: Afghanistan | J34: Non-executive (Other)
C35: Aland Islands | J35: Executive
C36: Albania | J36: Select
C37: Algeria | J37: A - Has authority to make key strategic, underwriting or investment decisions, etc.
C38: American Samoa | J38: B - Has authority to make key strategic, underwriting or investments decision, etc., within the risk appetite explicitly set by the Board of Directors.
C39: Andorra | J39: C - Must get key strategic, underwriting, or investment decisions signed-off by Board of Directors before executing.
C40: Angola
C41: Anguilla
C42: Antigua & Barbuda
C43: Argentina
C44: Armenia
C45: Aruba
C46: Australia
C47: Austria
C48: Azerbaijan
C49: Bahamas
C50: Bahrain
C51: Bangladesh
C52: Barbados
C53: Belarus
C54: Belgium
C55: Belize
C56: Benin
C57: Bhutan
C58: Bolivia
C59: Bosnia and Herzegovina
C60: Botswana
C61: Brazil
C62: British Virgin Islands
C63: Brunei Darussalam
C64: Bulgaria
C65: Burkina Faso
C66: Burundi
C67: Cambodia
C68: Cameroon
C69: Cape Verde
C70: Cayman Islands
C71: Central African Republic
C72: Chad
C73: Chile
C74: China
C75: Colombia
C76: Comoros
C77: Cook Islands
C78: Costa Rica
C79: Cote d' Ivoire
C80: Croatia
C81: Cuba
C82: Cyprus
C83: Czech Republic
C84: Democratic Republic of Congo
C85: Denmark
C86: Djibouti
C87: Dominica
C88: Dominican Republic
C89: Ecuador
C90: Egypt
C91: El Salvador
C92: Equatorial Guinea
C93: Eritrea
C94: Estonia
C95: Ethiopia
C96: Faeroe Islands
C97: Falkland Islands
C98: Fiji
C99: Finland
C100: France
C101: French Guiana
C102: French Polynesia
C103: fYR of Macedonia
C104: Gabon
C105: Gambia
C106: Georgia
C107: Germany
C108: Ghana
C109: Gibraltar
C110: Greece
C111: Greenland
C112: Grenada
C113: Guadeloupe
C114: Guam
C115: Guatemala
C116: Guernsey
C117: Guinea
C118: Guinea-Bissau
C119: Guyana
C120: Haiti
C121: Honduras
C122: Hong Kong
C123: Hungary
C124: Iceland
C125: India
C126: Indonesia
C127: Iran
C128: Iraq
C129: Isle of Man
C130: Israel
C131: Italy
C132: Jamaica
C133: Japan
C134: Jersey
C135: Jordan
C136: Kazakhstan
C137: Kenya
C138: Kiribati
C139: Kuwait
C140: Kyrgyzstan
C141: Lao PDR
C142: Latvia
C143: Lebanon
C144: Lesotho
C145: Liberia
C146: Libya
C147: Liechtenstein
C148: Lithuania
C149: Luxembourg
C150: Macao
C151: Madagascar
C152: Malawi
C153: Malaysia
C154: Maldives
C155: Mali
C156: Malta
C157: Marshall Islands
C158: Mauritania
C159: Mauritius
C160: Mayotte
C161: Mexico
C162: Micronesia
C163: Moldova
C164: Monaco
C165: Mongolia
C166: Montenegro
C167: Montserrat
C168: Morocco
C169: Mozambique
C170: Myanmar
C171: N. Mariana Islands
C172: Namibia
C173: Nauru
C174: Nepal
C175: Netherlands
C176: Netherlands Antilles (Curacao and Bonaire)
C177: New Caledonia
C178: New Zealand
C179: Nicaragua
C180: Niger
C181: Nigeria
C182: Niue
C183: Norfolk Island
C184: North Korea
C185: Northern Africa
C186: Norway
C187: Oman
C188: Pakistan
C189: Palau
C190: Palestine
C191: Panama
C192: Papua New Guinea
C193: Paraguay
C194: Peru
C195: Philippines
C196: Pitcairn
C197: Poland
C198: Portugal
C199: Puerto Rico
C200: Qatar
C201: Republic of Congo
C202: Republic of Ireland
C203: Reunion
C204: Romania
C205: Russian Federation
... 61 more rows

Sheet AML (LT Direct Only)
B1: SCHEDULE OF ANTI-MONEY LAUNDERING AND ANTI-TERRORIST FINANCING (AML/ATF)
B2: ='Cyber Risk'!$B$2 -> Enter Company Name
B3: ='Cyber Risk'!$B$4 -> 2021-12-31
B5: Every insurer that writes or has in force long-term direct business shall be required to complete the questions set out in the Schedule of Anti-Money Laundering/Anti-Terrorist Financing (Schedule) in relation to its long-term business but excluding any reinsurance business and provide particulars of its gross written premiums for the relevant year.
A9: Section A - Client/Customer Numbers
B10: 1 | C10: Total number of policies (regulated for AML/ATF purposes)
B12: =B10+1 -> 2 | C12: Does the company risk rate policies for Money Laundering/Terrorist Financing (ML/TF) risk? | I12: Select Yes/No
B14: =B12+1 -> 3 | C14: State the number of policies in the following risk assessment category—
I15: Number of policies
H16: Low risk
H17: Medium risk
H18: High risk
H19: Unknown
H20: Total | I20: =SUM(I16:I19) -> 0
A21: Section B - Products/Services
B22: 1 | C22: Provide the Gross Premium Written (GPW) for the relevant year. In addition:
C23: (a) Provide the percentage of GPW corresponding to any unrelated business written by the insurer
C24: (b) If applicable, confirm the percentage of insurance incidental general business written by the insurer to the total insurance GPW
C25: (c) Provide GPW by line of business:
G26: Insurance
C27: Lines of business | G27: GPW US$ | I27: Number of policies
C28: (a) Mortality
D29: (i) Term assurance
D30: (ii) Whole life
D31: (iii) Universal life
C32: (b) Critical illness (including accelerated critical illness products)
C33: (c) Longevity (immediate pay-out annuities, contingent annuities, pension pay-outs)
C34: (d) Longevity (deferred pay-out annuities, future contingent annuities, future pension pay-outs)
C35: (e) Annuities certain only
C36: (f) Deferred accumulation annuities
C37: (g) Disability income: active lives - including waiver of premium and long-term care
C38: (h) Disability income: active lives - other accident and sickness
C39: (i) Disability income: claims in payment - including waiver of premium and long-term care
C40: (j) Disability income: claims in payment - other accident and sickness
C41: (k) Group life
C42: (l) Group disability
C43: (m) Group health
C44: (n) Stop loss
C45: (o) Rider (other product riders not included above)
C46: (p) Variable annuities
C47: (q) Other lines of business
D49: (i) General business
D50: (ii) Any other lines of business
C52: Total GPW | G52: =SUM(G29:G50) -> 0 | I52: =SUM(I29:I50) -> 0
B54: 2 | C54: Provide claims paid (gross) for the reporting period. Additionally, provide claims paid by line of business:
G55: Insurance
C56: Lines of business | G56: Paid US$ | I56: Number of policies
C57: (a) Mortality
D58: (i) Term assurance
D59: (ii) Whole life
D60: (iii) Universal life
C61: (b) Critical illness (including accelerated critical illness products)
C62: (c) Longevity (immediate pay-out annuities, contingent annuities, pension pay-outs)
C63: (d) Longevity (deferred pay-out annuities, future contingent annuities, future pension pay-outs)
C64: (e) Annuities certain only
C65: (f) Deferred accumulation annuities
C66: (g) Disability income: active lives - including waiver of premium and long-term care
C67: (h) Disability income: active lives - other accident and sickness
C68: (i) Disability income: claims in payment - including waiver of premium and long-term care
C69: (j) Disability income: claims in payment - other accident and sickness
C70: (k) Group life
C71: (l) Group disability
C72: (m) Group health
C73: (n) Stop loss
C74: (o) Rider (other product riders not included above)
C75: (p) Variable annuities
C76: (q) Other lines of business
D78: (i) General business
D79: (ii) Any other lines of business
C81: Total claims paid | G81: =SUM(G58:G79) -> 0 | I81: =SUM(I58:I79) -> 0
B83: 3 | C83: Confirm the mechanism(s) used by the company to receive premium and pay claims:
G84: Premium | I84: Claims
F85: Bank transfer
F86: Cash
F87: Cheque
F88: Credit/debit card
F89: Virtual currencies
F90: Other (provide examples)
C91: If you use 'Other' provide details:
B98: 4 | C98: Does your company accept third-party payments? | I98: Select Yes/No
C99: If you have answered 'Yes' to 4. describe briefly the AML/ATF controls you have in place to mitigate this risk
A106: Section C - Delivery Channel
B107: 1 | C107: The number of business relationships onboarded for the last 12 months by each of the following methods—
G108: Number of business relationships
F109: Face to face with clients
F110: Via intermediary
F111: By phone, email, fax or post
E112: Other (provide examples)
F113: Total | G113: =SUM(G109:G112) -> 0
A115: Section D - Geography (including sub-sections for customer, transactions and Politically Exposed Persons PEP))
B116: 1 | C116: Do you identify PEPs | I116: Select Yes/No
B118: 2 | C118: Country of residence based on the policyholder's residence
C119: Zones listed below are in accordance with the Bermuda Solvency Capital Requirement (BSCR) under the Zone Categorisation and BSCR Rating Schedule
B121: Country of residence | E121: GPW US$ | G121: Number of | I121: Number of
G122: policies | I122: PEPs
B123: Zone 1 - Central and Western Asia
B124: Zone 2 - Eastern Asia
B125: Zone 3 - South and South Eastern Asia
B126: Zone 4 - Oceania
B127: Zone 5 - Northern Africa
B128: Zone 6 - Southern Africa
B129: Zone 7 - Eastern Europe
B130: Zone 8 - Northern Europe
B131: Zone 9 - Southern Europe
B132: Zone 10 - Western Europe
B133: Zone 11 - North America (excluding United States)
B134: Zone 12 - Caribbean
B135: Zone 13 - Eastern South America
B136: Zone 14 - Northern, Southern and Western South America
B137: Zone 15 - North East United States
B138: Zone 16 - South-East United States
B139: Zone 17 - Mid-West United States
B140: Zone 18 - Western United States
B141: Zone 19 - Central America
B142: Zone 20 - Bermuda
B143: Total | E143: =SUM(E123:E142) -> 0 | G143: =SUM(G123:G142) -> 0 | I143: =SUM(I123:I142) -> 0
B145: 3 | C145: Confirm if the company performs transaction monitoring | I145: Select Yes/No
B147: 4 | C147: Provide the following information, regarding claims handling:
B148: Country of residence | E148: Number of | G148: Number of | I148: Value of | J148: Number of
B149: of beneficiaries | E149: beneficiaries | G149: policies | I149: claims paid in USD | J149: PEPs
B150: Zone 1 - Central and Western Asia
B151: Zone 2 - Eastern Asia
B152: Zone 3 - South and South Eastern Asia
B153: Zone 4 - Oceania
B154: Zone 5 - Northern Africa
B155: Zone 6 - Southern Africa
B156: Zone 7 - Eastern Europe
B157: Zone 8 - Northern Europe
B158: Zone 9 - Southern Europe
B159: Zone 10 - Western Europe
B160: Zone 11 - North America (excluding United States)
B161: Zone 12 - Caribbean
B162: Zone 13 - Eastern South America
B163: Zone 14 - Northern, Southern and Western South America
B164: Zone 15 - North East United States
B165: Zone 16 - South-East United States
B166: Zone 17 - Mid-West United States
B167: Zone 18 - Western United States
B168: Zone 19 - Central America
B169: Zone 20 - Bermuda
B170: Total | E170: =SUM(E150:E169) -> 0 | G170: =SUM(G150:G169) -> 0 | I170: =SUM(I150:I169) -> 0 | J170: =SUM(J150:J169) -> 0
A172: Section F - Training/Personel
B173: 1 | C173: Confirm if your company provides employees with training in relating to ML/TF | I173: Select Yes/No
C174: If yes, confirm:
C175: (a) if ML/TF training is included in the induction program of new employees | I175: Select Yes/No
C176: (b) if the ML/TF training provided is specific to the business of insurance conducted by the insurer or is of general application | I176: Select Yes/No
C177: (c) the frequency that employees must undertake ML/TF training | I177: Select Years
B179: 2 | C179: How many persons are employed by the company? | H179: Full Time
H180: Part time (including temporary/contract)
C182: 2.1. Confirm the work arrangement of your compliance officer | I182: (Select Terms)
C184: 2.2. Confirm the work arrangement of your reporting officer | I184: (Select Terms)
B186: 3 | C186: Indicate what actions are undertaken when recruiting staff
C187: Verify name | I187: Select Yes/No
C188: Verify residential address | I188: Select Yes/No
C189: Check if the individual should be considered as PEP | I189: Select Yes/No
C190: Check individual against sanctions lists | I190: Select Yes/No
C191: Check for any negative press against the individual | I191: Select Yes/No
C192: Confirm employment history | I192: Select Yes/No
C193: Confirm references | I193: Select Yes/No
C194: Request details on any regulatory action taken against the individual | I194: Select Yes/No
C195: Request details of any criminal convictions | I195: Select Yes/No
B197: 4 | C197: Confirm if the company’s compliance officer is a member of the senior management of the company | I197: Select Yes/No
A199: Section G - AML/ATF Controls
B200: 1 | C200: Does the company have AML/ATF controls that are specific long-term insurance (not reinsurance) | I200: Select Yes/No
B201: 2 | C201: Does the company have AML/ATF controls that are specific for all other genral business or reinsurance | I201: Select Yes/No
B202: 3 | C202: Does the company have other specific AML/ATF controls | I202: Select Yes/No
C204: If you have answered 'Yes' to 3. describe briefly these AML/ATF controls
B211: 4 | C211: Confirm the frequency with which it rates the AML/ATF risks. | I211: Select Years
B213: 5 | C213: Whether senior management approval is required to approve new business, if the client has been risk rated as—
E214: Low | G214: Medium | I214: High
E215: Select Yes/No | G215: Select Yes/No | I215: Select Yes/No
B217: 6 | C217: If senior management approval is required to retain an existing client, if the client’s risk rating has changed to—
E218: Low | G218: Medium | I218: High
E219: Select Yes/No | G219: Select Yes/No | I219: Select Yes/No
B221: 7 | C221: Confirm if the policies and procedure manuals of the company relating to AML/ATF are in line with all applicable Bermuda laws and regulations | I221: Select Yes/No
C222: 7.1 Confirm the frequency for which the company's AML/ATF policies and procedures are reviewed | I222: Select Years
B223: (attach a copy of the AML/ATF policies and procedure if they have been updated in the last 12 months to the Attachments tab)
B225: 8 | C225: The date the company last performed an entity-wide AML/ATF risk assessment | I225: (Select)
B227: 9 | C227: The date the company last conducted an independent audit of its AML/ATF programme | I227: (Select)
C228: (attach a copy of the latest independent audit to the Attachments tab)
B230: 10 | C230: The date of the last compliance/reporting officer report on the operation and effectiveness of the company's AML/ATF policies, procedures and controls. | I230: (Select)
B232: 11 | C232: Does the company document the ML/TF risks associated with a product/service prior to launch? | I232: Select Yes/No
A234: Section H - Company Data
B235: 1 | C235: Company data
C236: 1.1. Is the company a part of a group? | I236: Select Yes/No
F237: Entity name | I237: RoC #
C238: 1.1.1. If yes, provide name of the group and Registrar of Companies (RoC) number (where relevant).
C240: 1.1.2 Is the company listed on a stock exchange? | I240: Select Yes/No
C242: If yes, list the name of the exchange:
B247: 2 | C247: Confirm if the insurer is registered as a Segregated Accounts Company (SAC) in accordance with the requirements of the Segregated Accounts Companies Act 2000 or of the Private Acts.
C248: (a) If the insurer is a SAC, provide the number of:
D249: (i) Active SACs
D250: (ii) Non-Active SACs
B252: 3 | C252: Confirm if the insurer has designated investment contracts in accordance with the provisions of section 57A of the Insurance Act 1978 or of the Private Act.
C253: If yes, provide the: | I253: Select Yes/No
C254: (a) Number of designated investment contracts approved
C255: (b) Net account value of the designated investments contracts at year-end
C257: Include any additional information/comments that you think might be relevant to this exercise?
A264: Section I - Corporate Governance
B265: Corporate Governance
... 41 more rows

Sheet Lines of Business (hidden)
A1: Special Purpose Insurers - Lines of Business
B4: General Business Lines of Business | C4: Sub Classes
A5: 1 | B5: Accident and Health, Travel, Personal Accident | C5: Accident and health, travel insurance, personal accident, medical expenses, patient hospital plans, Accident, Sickness and Unemployment (ASU), kidnap and ransom, dental, legal expenses
A6: 2 | B6: Agriculture | C6: Crop insurance, livestock, bloodstock, pet insurance
A7: 3 | B7: Aviation - Hull, Liability and War | C7: Aviation hull, aviation liability, aviation war, airside liability, satellite
A8: 4 | B8: Construction | C8: Contractors all risks, erection all risks,
A9: 5 | B9: Credit / Surety | C9: Credit insurance, surety bonds, municipal bonds, payment protection insurance, trade credit, collateral protection, credit cards
A10: 6 | B10: Crime and Fidelity | C10: Crime, fidelity
A11: 7 | B11: Cyber Risk | C11: Cyber, data protection, privacy and network security liability
A12: 8 | B12: Energy - Onshore and offshore | C12: Energy onshore, energy offshore, refinery, pipeline, rig and well,
A13: 9 | B13: Environmental Risk | C13: Environmental, pollution, environmental liability
A14: 10 | B14: General liability - Public, Products, Umbrella, Product recall | C14: Public liability, products liability, umbrella, product recall, employment practices liability, media liability
A15: 11 | B15: Marine - P&I, Cargo, Hull and Liability, War | C15: Marine hull, marine liability, protection and indemnity, specie, cargo, war and civil unrest, fine art, customer goods, storage
A16: 12 | B16: Medical Malpractice | C16: Hospital professional indemnity, surgeon professional indemnity, clinical trials, life sciences, managed care liability
A17: 13 | B17: Mortgage | C17: Mortgage indemnity,
A18: 14 | B18: Motor - APD and Liability | C18: Automobile physical damage, auto liability, non-standard auto insurance,
A19: 15 | B19: Political Risks | C19: Political risk, civil unrest
A20: 16 | B20: Professional Liability - Professional Indemnity, D&O, Bankers Blanket, E&O | C20: Professional indemnity, directors and officers, errors & omission, bankers blanket, management liability
A21: 17 | B21: Property and Casualty Catastrophe | C21: Property catastrophe, industry loss warranty, workers compensation catastrophe cover, flood
A22: 18 | B22: Property Damage and Business Interruption | C22: Property, business interruption, all risks, homeowners, boiler, mechanical breakdown, flood
A23: 19 | B23: Property Retrocession | C23: Retrocession reinsurance for property and property catastrophe
A24: 20 | B24: Finite Reinsurance | C24: Limited risk transfer contracts
A25: 21 | B25: Terrorism | C25: Terrorism,
A26: 22 | B26: Warranty, Residual Value | C26: Warranty, residual value, vehicle maintenance contracts, Guaranteed Asset Protection (GAP)
A27: 23 | B27: Workers Compensation/Employers Liability | C27: Workers compensation, employers liability, defense based act
B29: Long-Term Business Lines of Business | C29: Description
A30: 1 | B30: Mortality | C30: The risk of fluctuations or deterioration of mortality experience causing increased claims on life insurance coverages.
A31: 2 | B31: Critical Illness | C31: A form of accident and health insurance that pays a benefit if the person insured incurs a predefined major illness or injury.
A32: 3 | B32: Longevity | C32: The risk of fluctuations or improvements in mortality that cause benefits on payout annuities to be paid for longer than expected.
A33: 4 | B33: Deferred Annuities | C33: An insurance that provides savings or income benefits during the lifetime of the person insured or some limited period thereafter.
A34: 5 | B34: Disability Income: Active lives with premium guarantee of - | C34: An accident and health insurance that pays a benefit for a fixed period of time during disability, based on contracts that are for active lives and have a premium guarantee.
A35: 6 | B35: Disability Income: Actives lives for other accident and sickness | C35: An accident and health insurance that pays a benefit for a fixed period of time during disability based on contracts that are for active lives and are for other accident and sickness coverage.
A36: 7 | B36: Disability Income: Claims in payment | C36: An accident and health insurance that pays a benefit for a fixed period of time during disability based on contracts where claims in payment on waiver of premiums.
A37: 8 | B37: Disability Income: Claims in payment for other accident and sickness | C37: An accident and health insurance that pays a benefit for a fixed period of time during disability based on contracts where claims in payment on waiver of premiums based on contracts that are for active lives and are for other accident and sickness coverage.
A38: 9 | B38: Group Life | C38: Life insurance that is issued to persons insured through a group arrangement such as through an employer or association.
A39: 10 | B39: Group Disability | C39: Disability insurance that is issued to persons insured through a group arrangement such as through an employer or association.
A40: 11 | B40: Group Health | C40: Health insurance that is issued to persons insured through a group arrangement such as through an employer or association.
A41: 12 | B41: Stop Loss | C41: The risk that arises when total claims experience deteriorates or is more volatile than expected, thereby increasing the likelihood and amount by which actual claims experience exceeds a predefined level.
A42: 13 | B42: Rider | C42: The risk that arises when total claims experience deteriorates or is more volatile than expected, thereby increasing the likelihood and amount by which actual claims experience exceeds a predefined level.
A43: 14 | B43: Variable Annuities | C43: Insurance that provides a minimum investment guarantee on variable annuities.
